Workbook

Sheet LCC-Cold1
A1: Cells in blue font are user input parameters
A2: CECED modified model | C2: Cold1
A3: Modified compared to base line | C3: report VHK | D3: CECED modified | F3: C1 | G3: C2 | H3: C3 | I3: VSD | J3: I1 | K3: I2 | L3: I3 | M3: I4 | N3: I5 | O3: PCM | P3: F1 | Q3: F2 | S3: I3a | U3: BC | V3: C1 | W3: PCM | X3: I1 | Y3: C2 | Z3: I2 | AA3: I3
D4: 1
A5: V | B5: Refrigerated volume [m3] | C5: =(C10-2*C15)*(C11-2*C15)*(C12-C13-2*C15)-C14^2*C10 -> 0.250095 | D5: =(D10-2*D15)*(D11-2*D15)*(D12-D13-2*D15)-D14^2*(D10-2*D15) -> 0.254095 | F5: =(F10-2*F15)*(F11-2*F15)*(F12-F13-2*F15)-F14^2*F10 -> 0.250095 | G5: 0.250095 | H5: 0.250095 | I5: 0.250095 | J5: 0.249295 | K5: 0.248495 | L5: 0.247695 | M5: 0.250095 | N5: 0.250095 | O5: 0.250095 | P5: 0.250095 | Q5: 0.250095 | S5: =(S10-2*S15)*(S11-2*S15)*(S12-S13-2*S15)-S14^2*S10 -> 0.2317044681 | U5: =(U10-2*U15)*(U11-2*U15)*(U12-U13-2*U15)-U14^2*U10 -> 0.250095 | V5: 0.250095 | W5: 0.250095 | X5: 0.249295 | Y5: 0.249295 | Z5: 0.248495 | AA5: 0.247695
B6: Refrigerated volume [dm3] | C6: =C5*1000 -> 250.095 | D6: =D5*1000 -> 254.095 | F6: =F5*1000 -> 250.095 | G6: 250.095 | H6: 250.095 | I6: 250.095 | J6: 249.295 | K6: 248.495 | L6: 247.695 | M6: =M5*1000 -> 250.095 | N6: 250.095 | O6: 250.095 | P6: 250.095 | Q6: 250.095 | S6: =S5*1000 -> 231.7044681 | U6: =U5*1000 -> 250.095 | V6: 250.095 | W6: 250.095 | X6: 249.295 | Y6: 249.295 | Z6: 248.495 | AA6: 247.695
A7: A | B7: Refrigerated envelope surface [m2] | C7: =2*((C10-C15)*(C11-C15)+(C12-C15-C13)*(C11-C15)-(C14+0.5*C15)^2+(C10-C15)*(C12-C15-C13)) -> 3.15405 | D7: =2*((D10-D15)*(D11-D15)+(D12-D15-D13)*(D11-D15)-(D14)^2+(D10-D15)*(D12-D15-D13)) -> 3.1753 | F7: =2*((F10-F15)*(F11-F15)+(F12-F15-F13)*(F11-F15)-(F14+0.5*F15)^2+(F10-F15)*(F12-F15-F13)) -> 3.15405 | G7: 3.15405 | H7: 3.15405 | I7: 3.15405 | J7: 3.2447 | K7: 3.33645 | L7: 3.4293 | M7: 3.15405 | N7: 3.15405 | O7: 3.15405 | P7: 3.15405 | Q7: 3.15405 | S7: =2*((S10-S15)*(S11-S15)+(S12-S15-S13)*(S11-S15)-(S14+0.5*S15)^2+(S10-S15)*(S12-S15-S13)) -> 3.369506957 | U7: =2*((U10-U15)*(U11-U15)+(U12-U15-U13)*(U11-U15)-(U14+0.5*U15)^2+(U10-U15)*(U12-U15-U13)) -> 3.15405 | V7: 3.15405 | W7: 3.15405 | X7: 3.2447 | Y7: 3.2447 | Z7: 3.33645 | AA7: 3.4293
A8: Acd | B8: Condenser Area [m2] | C8: =C10*(C12-C13-C14) -> 0.654 | D8: =D10*(D12-D13-D14) -> 0.654 | F8: =F10*(F12-F13-F14) -> 0.654 | G8: 0.654 | H8: 0.654 | I8: 0.654 | J8: 0.6893 | K8: 0.7254 | L8: 0.7623 | M8: 0.654 | N8: 0.654 | O8: 0.654 | P8: 0.654 | Q8: 0.654 | S8: =S10*(S12-S13-S14) -> 0.7623 | U8: =U10*(U12-U13-U14) -> 0.654 | V8: 0.654 | W8: 0.654 | X8: 0.6893 | Y8: 0.6893 | Z8: 0.7254 | AA8: 0.7623
A9: Ldr | B9: Door perimeter length [m] | C9: =2*(C10+(C12-C13)) -> 3.89 | D9: =2*(D10+(D12-D13)) -> 3.89 | F9: =2*(F10+(F12-F13)) -> 3.89 | G9: 3.89 | H9: 3.89 | I9: 3.89 | J9: 3.97 | K9: 4.05 | L9: 4.13 | M9: 3.89 | N9: 3.89 | O9: 3.89 | P9: 3.89 | Q9: 3.89 | S9: =2*(S10+(S12-S13)) -> 4.13 | U9: =2*(U10+(U12-U13)) -> 3.89 | V9: 3.89 | W9: 3.89 | X9: 3.97 | Y9: 3.97 | Z9: 4.05 | AA9: 4.13
A10: w | B10: width [m] | C10: 0.545 | D10: 0.545 | F10: 0.545 | G10: 0.545 | H10: 0.545 | I10: 0.545 | J10: 0.565 | K10: 0.585 | L10: 0.605 | M10: 0.545 | N10: 0.545 | O10: 0.545 | P10: 0.545 | Q10: 0.545 | S10: 0.605 | U10: 0.545 | V10: 0.545 | W10: 0.545 | X10: 0.565 | Y10: 0.565 | Z10: 0.585 | AA10: 0.605
A11: d | B11: depth [m] | C11: 0.57 | D11: 0.57 | F11: 0.57 | G11: 0.57 | H11: 0.57 | I11: 0.57 | J11: 0.59 | K11: 0.61 | L11: 0.63 | M11: 0.57 | N11: 0.57 | O11: 0.57 | P11: 0.57 | Q11: 0.57 | S11: 0.63 | U11: 0.57 | V11: 0.57 | W11: 0.57 | X11: 0.59 | Y11: 0.59 | Z11: 0.61 | AA11: 0.63
A12: h | B12: height [m] | C12: 1.45 | D12: 1.45 | F12: 1.45 | G12: 1.45 | H12: 1.45 | I12: 1.45 | J12: 1.47 | K12: 1.49 | L12: 1.51 | M12: 1.45 | N12: 1.45 | O12: 1.45 | P12: 1.45 | Q12: 1.45 | S12: 1.51 | U12: 1.45 | V12: 1.45 | W12: 1.45 | X12: 1.47 | Y12: 1.47 | Z12: 1.49 | AA12: 1.51
A13: a | B13: air passage height below unit [m] | C13: 0.05 | D13: 0.05 | F13: 0.05 | G13: 0.05 | H13: 0.05 | I13: 0.05 | J13: 0.05 | K13: 0.05 | L13: 0.05 | M13: 0.05 | N13: 0.05 | O13: 0.05 | P13: 0.05 | Q13: 0.05 | S13: 0.05 | U13: 0.05 | V13: 0.05 | W13: 0.05 | X13: 0.05 | Y13: 0.05 | Z13: 0.05 | AA13: 0.05
A14: b | B14: height and depth compressor area [m] | C14: 0.2 | D14: 0.2 | F14: 0.2 | G14: 0.2 | H14: 0.2 | I14: 0.2 | J14: 0.2 | K14: 0.2 | L14: 0.2 | M14: 0.2 | N14: 0.2 | O14: 0.2 | P14: 0.2 | Q14: 0.2 | S14: 0.2 | U14: 0.2 | V14: 0.2 | W14: 0.2 | X14: 0.2 | Y14: 0.2 | Z14: 0.2 | AA14: 0.2
A15: t | B15: average wall thickness [m] | C15: 0.05 | D15: 0.05 | F15: 0.05 | G15: 0.05 | H15: 0.05 | I15: 0.05 | J15: 0.06 | K15: 0.07 | L15: 0.08 | M15: 0.05 | N15: 0.05 | O15: 0.05 | P15: 0.05 | Q15: 0.05 | S15: 0.08582325728 | U15: 0.05 | V15: 0.05 | W15: 0.05 | X15: 0.06 | Y15: 0.06 | Z15: 0.07 | AA15: 0.08
A16: t | B16: average wall thickness from data base [m] | C16: =(12.717*C5+1.4858)/100 -> 0.04666258115 | D16: =(12.717*D5+1.4858)/100 -> 0.04717126115 | F16: =(12.717*F5+1.4858)/100 -> 0.04666258115 | G16: 0.04666258115 | H16: 0.04666258115 | I16: 0.04666258115 | J16: 0.04656084515 | K16: 0.04645910915 | L16: 0.04635737315 | M16: 0.04666258115 | N16: 0.04666258115 | O16: 0.04666258115 | P16: 0.04666258115 | Q16: 0.04666258115 | S16: =(12.717*S5+1.4858)/100 -> 0.04432385721 | U16: =(12.717*U5+1.4858)/100 -> 0.04666258115 | V16: 0.04666258115 | W16: 0.04666258115 | X16: 0.04656084515 | Y16: 0.04656084515 | Z16: 0.04645910915 | AA16: 0.04635737315
A17: Tc | B17: compartment temperature [C] | C17: 5 | D17: 5 | F17: 5 | G17: 5 | H17: 5 | I17: 5 | J17: 5 | K17: 5 | L17: 5 | M17: 5 | N17: 5 | O17: 5 | P17: 5 | Q17: 5 | S17: 5 | U17: 5 | V17: 5 | W17: 5 | X17: 5 | Y17: 5 | Z17: 5 | AA17: 5
A18: Ta | B18: ambient temperature [C] | C18: 25 | D18: 25 | F18: 25 | G18: 25 | H18: 25 | I18: 25 | J18: 25 | K18: 25 | L18: 25 | M18: 25 | N18: 25 | O18: 25 | P18: 25 | Q18: 25 | S18: 25 | U18: 25 | V18: 25 | W18: 25 | X18: 25 | Y18: 25 | Z18: 25 | AA18: 25
A19: k | B19: heat conductivity wall [W/m/K] | C19: 0.02 | D19: 0.02 | F19: 0.02 | G19: 0.02 | H19: 0.02 | I19: 0.02 | J19: 0.02 | K19: 0.02 | L19: 0.02 | M19: 0.02 | N19: 0.02 | O19: 0.02 | P19: 0.02 | Q19: 0.02 | S19: 0.02 | U19: 0.02 | V19: 0.02 | W19: 0.02 | X19: 0.02 | Y19: 0.02 | Z19: 0.02 | AA19: 0.02
A20: U wall | B20: heat transfer coefficient [W/m2/K] | C20: =C19/C15 -> 0.4 | D20: =D19/D15 -> 0.4 | F20: =F19/F15 -> 0.4 | G20: 0.4 | H20: 0.4 | I20: 0.4 | J20: 0.3333333333 | K20: 0.2857142857 | L20: 0.25 | M20: 0.36 | N20: 0.32 | O20: =O19/O15 -> 0.4 | P20: =P19/P15 -> 0.4 | Q20: =Q19/Q15 -> 0.4 | S20: =S19/S15 -> 0.2330370652 | U20: =U19/U15 -> 0.4 | V20: 0.4 | W20: 0.4 | X20: 0.3333333333 | Y20: 0.3333333333 | Z20: 0.2857142857 | AA20: 0.25
A21: Ptrans | B21: transmission heat loss [W] | C21: =C7*C20*(C18-C17) -> 25.2324 | D21: =D7*D20*(D18-D17) -> 25.4024 | F21: =F7*F20*(F18-F17) -> 25.2324 | G21: 25.2324 | H21: 25.2324 | I21: 25.2324 | J21: 21.63133333 | K21: 19.06542857 | L21: 17.1465 | M21: 22.70916 | N21: 20.18592 | O21: 25.2324 | P21: 25.2324 | Q21: 25.2324 | S21: =S7*S20*(S18-S17) -> 15.70440024 | U21: =U7*U20*(U18-U17) -> 25.2324 | V21: 25.2324 | W21: 25.2324 | X21: 21.63133333 | Y21: 21.63133333 | Z21: 19.06542857 | AA21: 17.1465
A22: Udoor | B22: heat transfer coeff. door gasket [W/mK] | C22: 0.08 | D22: 0.08 | F22: 0.08 | G22: 0.08 | H22: 0.08 | I22: 0.08 | J22: 0.07 | K22: 0.06 | L22: 0.05 | M22: 0.08 | N22: 0.08 | O22: 0.08 | P22: 0.08 | Q22: 0.08 | S22: 0.05 | U22: 0.08 | V22: 0.08 | W22: 0.08 | X22: 0.07 | Y22: 0.07 | Z22: 0.06 | AA22: 0.05
A23: Pdoor | B23: door heat loss [W] | C23: =C22*C9*(C18-C17) -> 6.224 | D23: =D22*D9*(D18-D17) -> 6.224 | F23: =F22*F9*(F18-F17) -> 6.224 | G23: 6.224 | H23: 6.224 | I23: 6.224 | J23: 5.558 | K23: 4.86 | L23: 4.13 | M23: 6.224 | N23: 6.224 | O23: 6.224 | P23: 6.224 | Q23: 6.224 | S23: =S22*S9*(S18-S17) -> 4.13 | U23: =U22*U9*(U18-U17) -> 6.224 | V23: 6.224 | W23: 6.224 | X23: 5.558 | Y23: 5.558 | Z23: 4.86 | AA23: 4.13
A24: Ploss_tot | B24: total heat power loss (Ptrans+Pdoor) [W] | C24: =C21+C23 -> 31.4564 | D24: =D21+D23 -> 31.6264 | F24: =F21+F23 -> 31.4564 | G24: 31.4564 | H24: 31.4564 | I24: 31.4564 | J24: 27.18933333 | K24: 23.92542857 | L24: 21.2765 | M24: 28.93316 | N24: 26.40992 | O24: 31.4564 | P24: =P21+P23+1.8*1000/(365*24) -> 31.66187945 | Q24: 31.4564 | S24: =S21+S23 -> 19.83440024 | U24: =U21+U23 -> 31.4564 | V24: 31.4564 | W24: 31.4564 | X24: 27.18933333 | Y24: 27.18933333 | Z24: 23.92542857 | AA24: 21.2765
A25: Ploss_tot_spec | B25: specific total heat loss [W/m3] | C25: =C24/C6 -> 0.1257778044 | D25: =D24/D6 -> 0.1244668333 | F25: =F24/F6 -> 0.1257778044 | G25: 0.1257778044 | H25: 0.1257778044 | I25: 0.1257778044 | J25: 0.1090648963 | K25: 0.09628132788 | L25: 0.08589797937 | M25: 0.1156886783 | N25: 0.1055995522 | O25: 0.1257778044 | P25: 0.12659941 | Q25: 0.1257778044 | S25: =S24/S6 -> 0.08560214831 | U25: =U24/U6 -> 0.1257778044 | V25: 0.1257778044 | W25: 0.1257778044 | X25: 0.1090648963 | Y25: 0.1090648963 | Z25: 0.09628132788 | AA25: 0.08589797937
A26: Eloss_tot | B26: annual heat loss [kWhth/a] | C26: =C24*365*24/1000 -> 275.558064 | D26: =D24*365*24/1000 -> 277.047264 | F26: =F24*365*24/1000 -> 275.558064 | G26: 275.558064 | H26: 275.558064 | I26: 275.558064 | J26: 238.17856 | K26: 209.5867543 | L26: 186.38214 | M26: 253.4544816 | N26: 231.3508992 | O26: 275.558064 | P26: 277.358064 | Q26: 275.558064 | S26: =S24*365*24/1000 -> 173.7493461 | U26: =U24*365*24/1000 -> 275.558064 | V26: 275.558064 | W26: 275.558064 | X26: 238.17856 | Y26: 238.17856 | Z26: 209.5867543 | AA26: 186.38214
A27: dTev | B27: evaporator temperature difference [K] | C27: 17 | D27: 17 | F27: 17 | G27: 17 | H27: 19.9 | I27: 11.4 | J27: 15.7 | K27: 14.6 | L27: 13.7 | M27: 16.2 | N27: 15.3 | O27: 17 | P27: 14 | Q27: 17.2 | S27: 13.7 | U27: 17 | V27: 17 | W27: 17 | X27: 15.7 | Y27: 15.7 | Z27: 14 | AA27: 13
A28: dTcd | B28: condenser temperature difference [K] | C28: 10 | D28: 10 | F28: 9.9 | G28: 9.8 | H28: 11.4 | I28: 6.8 | J28: 10.4 | K28: 10.8 | L28: 11.1 | M28: 10.3 | N28: 10.6 | O28: 10 | P28: 11 | Q28: 7.5 | S28: 11.1 | U28: 10 | V28: 9.9 | W28: 9.9 | X28: 10.4 | Y28: 10.2 | Z28: 10.5 | AA28: 11
A29: Tev | B29: evaporator temperature [C] | C29: =C17-C27 -> -12 | D29: =D17-D27 -> -12 | F29: =F17-F27 -> -12 | G29: -12 | H29: -14.9 | I29: -6.4 | J29: -10.7 | K29: -9.6 | L29: -8.7 | M29: -11.2 | N29: -10.3 | O29: -12 | P29: -9 | Q29: -12.2 | S29: =S17-S27 -> -8.7 | U29: =U17-U27 -> -12 | V29: -12 | W29: -12 | X29: -10.7 | Y29: -10.7 | Z29: -9 | AA29: -8
A30: Tcd | B30: condenser temperature [C] | C30: =C18+C28 -> 35 | D30: =D18+D28 -> 35 | F30: =F18+F28 -> 34.9 | G30: 34.8 | H30: 36.4 | I30: 31.8 | J30: 35.4 | K30: 35.8 | L30: 36.1 | M30: 35.3 | N30: 35.6 | O30: 35 | P30: 36 | Q30: 32.5 | S30: =S18+S28 -> 36.1 | U30: =U18+U28 -> 35 | V30: 34.9 | W30: 34.9 | X30: 35.4 | Y30: 35.2 | Z30: 35.5 | AA30: 36
A31: Pnom | B31: nominal compressor cooling power [W] | C31: 63 | D31: 63 | F31: 63 | G31: 63 | H31: 86 | I31: 31 | J31: 63 | K31: 63 | L31: 63 | M31: 63 | N31: 63 | O31: 63 | P31: 63 | Q31: 63 | S31: 63 | U31: 63 | V31: 63 | W31: 63 | X31: 63 | Y31: 63 | Z31: 63 | AA31: 63
A32: COPnom | B32: nominal at -23.4/54.4 (subcooling 32.2) [-] | C32: 1.644 | D32: 1.644 | F32: 1.725 | G32: 1.85 | H32: 1.98 | I32: 1.5 | J32: 1.644 | K32: 1.644 | L32: 1.644 | M32: 1.644 | N32: 1.644 | O32: 1.644 | P32: 1.644 | Q32: 1.644 | S32: 1.644 | U32: 1.644 | V32: 1.725 | W32: 1.725 | X32: 1.725 | Y32: 1.85 | Z32: 1.85 | AA32: 1.85
A33: Pratio | B33: Ratio Pc/Pcnom | C33: =Pc_c1+Pc_c2*C29+Pc_c3*C30+Pc_c4*C29^2+Pc_c5*C29*C30+Pc_c6*C30^2+Pc_c7*C29^3+Pc_c8*C30*C29^2+Pc_c9*C29*C30^2+Pc_c10*C30^3 -> 1.912903157 | D33: =Pc_c1+Pc_c2*D29+Pc_c3*D30+Pc_c4*D29^2+Pc_c5*D29*D30+Pc_c6*D30^2+Pc_c7*D29^3+Pc_c8*D30*D29^2+Pc_c9*D29*D30^2+Pc_c10*D30^3 -> 1.912903157 | F33: =Pc_c1+Pc_c2*F29+Pc_c3*F30+Pc_c4*F29^2+Pc_c5*F29*F30+Pc_c6*F30^2+Pc_c7*F29^3+Pc_c8*F30*F29^2+Pc_c9*F29*F30^2+Pc_c10*F30^3 -> 1.914754129 | G33: 1.916605214 | H33: 1.652548656 | I33: 2.507484223 | J33: 2.018728798 | K33: 2.11028701 | L33: 2.187948669 | M33: 1.976518716 | N33: 2.05062068 | O33: 1.912903157 | P33: 2.161836736 | Q33: 1.941872277 | S33: =Pc_c1+Pc_c2*S29+Pc_c3*S30+Pc_c4*S29^2+Pc_c5*S29*S30+Pc_c6*S30^2+Pc_c7*S29^3+Pc_c8*S30*S29^2+Pc_c9*S29*S30^2+Pc_c10*S30^3 -> 2.187948669 | U33: =Pc_c1+Pc_c2*U29+Pc_c3*U30+Pc_c4*U29^2+Pc_c5*U29*U30+Pc_c6*U30^2+Pc_c7*U29^3+Pc_c8*U30*U29^2+Pc_c9*U29*U30^2+Pc_c10*U30^3 -> 1.912903157 | V33: 1.914754129 | W33: 1.914754129 | X33: 2.018728798 | Y33: 2.022583544 | Z33: 2.17199494 | AA33: 2.256741891
A34: P | B34: Cooling power | C34: =C31*C33 -> 120.5128989 | D34: =D31*D33 -> 120.5128989 | F34: =F31*F33 -> 120.6295101 | G34: 120.7461285 | H34: 142.1191845 | I34: 77.73201091 | J34: 127.1799143 | K34: 132.9480816 | L34: 137.8407662 | M34: 124.5206791 | N34: 129.1891028 | O34: 120.5128989 | P34: 136.1957144 | Q34: 122.3379535 | S34: =S31*S33 -> 137.8407662 | U34: =U31*U33 -> 120.5128989 | V34: 120.6295101 | W34: 120.6295101 | X34: 127.1799143 | Y34: 127.4227633 | Z34: 136.8356812 | AA34: 142.1747391
A35: Load factor | B35: Ratio of heat load to cooling power | C35: =C24/C34 -> 0.2610210217 | D35: =D24/D34 -> 0.2624316591 | F35: =F24/F34 -> 0.2607686956 | G35: 0.2605168414 | H35: 0.2213381685 | I35: 0.4046775535 | J35: 0.2137863789 | K35: 0.1799606905 | L35: 0.1543556423 | M35: 0.2323562657 | N35: 0.2044283877 | O35: 0.2610210217 | P35: 0.2324733902 | Q35: 0.2571270739 | S35: =S24/S34 -> 0.1438935722 | U35: =U24/U34 -> 0.2610210217 | V35: 0.2607686956 | W35: 0.2607686956 | X35: 0.2137863789 | Y35: 0.2133789336 | Z35: 0.1748478786 | AA35: 0.1496503537
A36: Cycling losses | B36: Part load losses (in % COP) | C36: =0.125*(1-C24/C34) -> 0.09237237228 | D36: =0.125*(1-D24/D34) -> 0.09219604261 | F36: =0.125*(1-F24/F34) -> 0.09240391305 | G36: 0.09243539482 | H36: 0.09733272893 | I36: 0.07441530582 | J36: 0.09827670264 | K36: 0.1025049137 | L36: 0.1057055447 | M36: 0.09595546678 | N36: 0.09944645154 | O36: =0.5*C36 -> 0.04618618614 | P36: =0.125*(1-P24/P34) -> 0.09594082623 | Q36: =0.125*(1-Q24/Q34) -> 0.09285911577 | S36: =0.125*(1-S24/S34) -> 0.1070133035 | U36: =0.125*(1-U24/U34) -> 0.09237237228 | V36: =0.125*(1-V24/V34) -> 0.09240391305 | W36: =0.125*(1-W24/W34)*0.5 -> 0.04620195652 | X36: =0.125*(1-X24/X34)*0.5 -> 0.04913835132 | Y36: =0.125*(1-Y24/Y34)*0.5 -> 0.04916381665 | Z36: =0.125*(1-Z24/Z34)*0.5 -> 0.05157200759 | AA36: =0.125*(1-AA24/AA34)*0.5 -> 0.05314685289
A37: COP ratio | B37: Ratio COP/ COPnom | C37: =COP_c1+COP_c2*C29+COP_c3*C30+COP_c4*C29^2+COP_c5*C29*C30+COP_c6*C30^2+COP_c7*C29^3+COP_c8*C30*C29^2+COP_c9*C29*C30^2+COP_c10*C30^3 -> 1.684519234 | D37: =COP_c1+COP_c2*D29+COP_c3*D30+COP_c4*D29^2+COP_c5*D29*D30+COP_c6*D30^2+COP_c7*D29^3+COP_c8*D30*D29^2+COP_c9*D29*D30^2+COP_c10*D30^3 -> 1.684519234 | F37: =COP_c1+COP_c2*F29+COP_c3*F30+COP_c4*F29^2+COP_c5*F29*F30+COP_c6*F30^2+COP_c7*F29^3+COP_c8*F30*F29^2+COP_c9*F29*F30^2+COP_c10*F30^3 -> 1.688638704 | G37: 1.692775287 | H37: 1.511305371 | I37: 2.138128744 | J37: 1.727001959 | K37: 1.761383434 | L37: 1.79142045 | M37: 1.708236455 | N37: 1.737058179 | O37: 1.684519234 | P37: 1.781331873 | Q37: 1.783033542 | S37: =COP_c1+COP_c2*S29+COP_c3*S30+COP_c4*S29^2+COP_c5*S29*S30+COP_c6*S30^2+COP_c7*S29^3+COP_c8*S30*S29^2+COP_c9*S29*S30^2+COP_c10*S30^3 -> 1.79142045 | U37: =COP_c1+COP_c2*U29+COP_c3*U30+COP_c4*U29^2+COP_c5*U29*U30+COP_c6*U30^2+COP_c7*U29^3+COP_c8*U30*U29^2+COP_c9*U29*U30^2+COP_c10*U30^3 -> 1.684519234 | V37: 1.688638704 | W37: 1.688638704 | X37: 1.727001959 | Y37: 1.735548184 | Z37: 1.803756955 | AA37: 1.830549728
A38: COP | B38: COP at actual Tev and Tcd | C38: =C37*C32 -> 2.769349621 | D38: =D37*D32 -> 2.769349621 | F38: =F37*F32 -> 2.912901764 | G38: 3.131634282 | H38: 2.992384635 | I38: 3.207193115 | J38: 2.839191221 | K38: 2.895714366 | L38: 2.945095219 | M38: 2.808340731 | N38: 2.855723646 | O38: 2.769349621 | P38: 2.9285096 | Q38: 2.931307143 | S38: =S37*S32 -> 2.945095219 | U38: =U37*U32 -> 2.769349621 | V38: 2.912901764 | W38: 2.912901764 | X38: 2.97907838 | Y38: 3.21076414 | Z38: 3.336950366 | AA38: 3.386516996
A39: COP cyc | B39: avg COP at actual Tev and Tcd | C39: =C38*(1-C36) -> 2.513538226 | D39: =D38*(1-D36) -> 2.514026545 | F39: =F38*(1-F36) -> 2.643738243 | G39: 2.84216043 | H39: 2.701127673 | I39: 2.968528859 | J39: 2.56016487 | K39: 2.598889414 | L39: 2.633782325 | M39: 2.538865086 | N39: 2.571732063 | O39: 2.641443923 | P39: 2.647545969 | Q39: 2.659108554 | S39: =S38*(1-S36) -> 2.629930851 | U39: =U38*(1-U36) -> 2.513538226 | V39: 2.643738243 | W39: 2.778320004 | X39: 2.83269138 | Y39: 3.05291072 | Z39: 3.164857137 | AA39: 3.206534275
A40: Eaux | B40: electricity CPU and possible fan [kWh/a] | C40: 4.4 | D40: 4.4 | F40: 4.4 | G40: 4.4 | H40: 4.4 | I40: 8.8 | J40: 4.4 | K40: 4.4 | L40: 4.4 | M40: 4.4 | N40: 4.4 | O40: 4.4 | P40: 6.2 | Q40: 6.1 | S40: 4.4 | U40: 4.4 | V40: 4.4 | W40: 4.4 | X40: 4.4 | Y40: 4.4 | Z40: 4.4 | AA40: 4.4
A41: Eaux | B41: electricity CPU and possible fan [W] | C41: =C40*1000/(365*25) -> 0.4821917808 | D41: =D40*1000/(365*25) -> 0.4821917808 | F41: =F40*1000/(365*25) -> 0.4821917808 | G41: 0.4821917808 | H41: 0.4821917808 | I41: 0.9643835616 | J41: 0.4821917808 | K41: 0.4821917808 | L41: 0.4821917808 | M41: 0.4821917808 | N41: 0.4821917808 | O41: 0.4821917808 | P41: 0.6794520548 | Q41: 0.6684931507 | S41: =S40*1000/(365*25) -> 0.4821917808 | U41: =U40*1000/(365*25) -> 0.4821917808 | V41: 0.4821917808 | W41: 0.4821917808 | X41: 0.4821917808 | Y41: 0.4821917808 | Z41: 0.4821917808 | AA41: 0.4821917808
A42: AE | B42: annual electricity consumption [kWh/a] | C42: =C26/C39+C40 -> 114.0295497 | D42: =D26/D39+D40 -> 114.6006121 | F42: =F26/F39+F40 -> 108.6304641 | G42: 101.3537332 | H42: 106.4159346 | I42: 101.626473 | J42: 97.43250851 | K42: 85.04473737 | L42: 75.16596203 | M42: 104.2298346 | N42: 94.35917675 | O42: 108.7209971 | P42: 110.9604337 | Q42: 109.727986 | S42: =S26/S39+S40 -> 70.46612721 | U42: =U26/U39+U40 -> 114.0295497 | V42: 108.6304641 | W42: 103.5815427 | X42: 88.48207181 | Y42: 82.41687695 | Z42: 70.62313275 | AA42: 62.52572828
A43: SAE | B43: standard annual electricity consumption [kWh/a] | C43: =C6*M_Cold1+N_Cold1 -> 303.272135 | D43: =D6*M_Cold1+N_Cold1 -> 304.204135 | F43: =F6*M_Cold1+N_Cold1 -> 303.272135 | G43: 303.272135 | H43: 303.272135 | I43: 303.272135 | J43: 303.085735 | K43: 302.899335 | L43: 302.712935 | M43: 303.272135 | N43: 303.272135 | O43: 303.272135 | P43: 303.272135 | Q43: 303.272135 | S43: =S6*M_Cold1+N_Cold1 -> 298.9871411 | U43: =U6*M_Cold1+N_Cold1 -> 303.272135 | V43: 303.272135 | W43: 303.272135 | X43: 303.085735 | Y43: 303.085735 | Z43: 302.899335 | AA43: 302.712935
A44: EEI | B44: energy efficiency index [-] | C44: =C42/C43 -> 0.3759974511 | D44: =D42/D43 -> 0.3767227295 | F44: =F42/F43 -> 0.3581946759 | G44: 0.3342006122 | H44: 0.350892556 | I44: 0.3350999359 | J44: 0.3214684733 | K44: 0.2807689801 | L44: 0.248307731 | M44: 0.3436841786 | N44: 0.3111369818 | O44: 0.3584931967 | P44: 0.3658774444 | Q44: 0.3618136101 | S44: =S42/S43 -> 0.2356828021 | U44: =U42/U43 -> 0.3759974511 | V44: 0.3581946759 | W44: 0.3415465212 | X44: 0.2919374342 | Y44: 0.2719259517 | Z44: 0.2331571073 | AA44: 0.2065512274
A45: q-model | B45: Model at Ta=25 C [kWh/dm3] | C45: =C42/C6 -> 0.4559449399 | D45: =D42/D6 -> 0.4510148254 | F45: =F42/F6 -> 0.4343568008 | G45: 0.4052609335 | H45: 0.4255020476 | I45: 0.4063514785 | J45: 0.3908321808 | K45: 0.3422392297 | L45: 0.3034617656 | M45: 0.4167609693 | N45: 0.3772933355 | O45: 0.4347187954 | P45: 0.443673139 | Q45: 0.4387452209 | S45: =S42/S6 -> 0.3041207093 | U45: =U42/U6 -> 0.4559449399 | V45: 0.4343568008 | W45: 0.4141687866 | X45: 0.3549291876 | Y45: 0.3305997992 | Z45: 0.2842034357 | AA45: 0.2524303207
B47: Consumption compared to base case | F47: =(F42-$C42)/$C42 -> -0.04734812735 | G47: =(G42-$C42)/$C42 -> -0.1111625591 | H47: -0.06676879061 | I47: =(I42-$C42)/$C42 -> -0.1087707244 | J47: -0.1455503531 | K47: =(K42-$C42)/$C42 -> -0.2541868527 | L47: -0.3408203207 | M47: =(M42-$C42)/$C42 -> -0.08594013697 | N47: =(N42-$C42)/$C42 -> -0.1725024174 | O47: -0.04655418355 | P47: =(P42-$C42)/$C42 -> -0.02691509384 | Q47: -0.0377232369 | S47: =(S42-$C42)/$C42 -> -0.3820362584 | V47: =(V42-$C42)/$C42 -> -0.04734812735 | W47: -0.09162543469 | X47: -0.2240426098 | Y47: -0.2772322864 | Z47: -0.3806593737 | AA47: -0.4516708307
A49: U cond | B49: Check on condenser heat transfer [W/m2/K] | C49: =(C34+C34/C39)/(2*C8)/C28 -> 12.87908406 | D49: =(D34+D34/D39)/(2*D8)/D28 -> 12.87837207 | F49: =(F34+F34/F39)/(2*F8)/F28 -> 12.83924076 | G49: 12.73404268 | H49: 13.05957566 | I49: 11.68346101 | J49: 12.33528224 | K49: 11.74982706 | L49: 11.23770982 | M49: 12.88311533 | N49: 12.94092815 | O49: 12.70158797 | P49: 13.04128174 | Q49: 17.16055899 | S49: =(S34+S34/S39)/(2*S8)/S28 -> 11.24223881 | U49: =(U34+U34/U39)/(2*U8)/U28 -> 12.87908406 | V49: 12.83924076 | W49: 12.66855547 | X49: 12.00194144 | Y49: 12.02988584 | Z49: 11.82084468 | AA49: 11.12147487
B51: Price increase (in terms of final sales price) | F51: 9.58 | G51: 24.37 | H51: 33.17 | I51: 51.9 | J51: 30.89 | K51: 63.64 | L51: 98.08 | M51: 54.2 | N51: 114.15 | O51: 9.74 | P51: 18.54 | Q51: 11.21 | V51: =INDEX($F51:$Q51,MATCH(V3,$F3:$Q3,0)) -> 9.58 | W51: 9.74 | X51: 30.89 | Y51: 24.37 | Z51: 63.64 | AA51: 98.08
B52: Price [EUR] | C52: 495 | F52: =$C52+F51 -> 504.58 | G52: =$C52+G51 -> 519.37 | H52: 528.17 | I52: 546.9 | J52: 525.89 | K52: 558.64 | L52: 593.08 | M52: 549.2 | N52: 609.15 | O52: 504.74 | P52: 513.54 | Q52: 506.21 | U52: 495 | V52: =U52+V51 -> 504.58 | W52: =V52+W51 -> 514.32 | X52: 545.21 | Y52: 569.58 | Z52: 633.22 | AA52: 731.3
B54: Simple Pay Back [year] | F54: =-F51/(F55-$C55) -> 8.655485467 | G54: =-G51/(G55-$C55) -> 9.378334577 | H54: 21.25204325 | I54: 20.41192983 | J54: 9.078902966 | K54: 10.71040311 | L54: 12.31072715 | M54: 26.97938058 | N54: 28.30801778 | O54: 8.950122341 | P54: 29.46745039 | Q54: 12.71233682 | V54: =-(V52-$U$52)/(V55-$U$55) -> 8.655485467 | W54: =-(W52-$U$52)/(W55-$U$55) -> 9.020275531 | X54: 9.58712363 | Y54: 11.50819738 | Z54: 15.53327709 | AA54: 22.38053205
B55: Annual Electricity costs [EUR] | C55: =C42*ElCosts -> 23.3760577 | F55: =F42*ElCosts -> 22.26924514 | G55: 20.7775153 | H55: 21.81526659 | I55: 20.83342697 | J55: 19.97366424 | K55: 17.43417116 | L55: 15.40902222 | M55: 21.3671161 | N55: 19.34363123 | O55: 22.28780441 | P55: 22.74688891 | Q55: 22.49423713 | U55: =U42*ElCosts -> 23.3760577 | V55: 22.26924514 | W55: 21.23421625 | X55: 18.13882472 | Y55: 16.89545977 | Z55: 14.47774221 | AA55: 12.8177743
B56: LLC [EUR] | C56: =C52+C55*Lifetime -> 869.0169231 | F56: =F52+F55*Lifetime -> 860.8879222 | G56: 851.8102448 | H56: 877.2142655 | I56: 880.2348315 | J56: 845.4686279 | K56: 837.5867386 | L56: 839.6243554 | M56: 891.0738575 | N56: 918.6480997 | O56: 861.3448706 | P56: 877.4902225 | Q56: 866.1177941 | U56: =U52+U55*Lifetime -> 869.0169231 | V56: 860.8879222 | W56: 854.06746 | X56: 835.4311955 | Y56: 839.9073564 | Z56: 864.8638754 | AA56: 936.3843888
B57: Ranking | F57: 1 | G57: 4 | H57: 9 | I57: 8 | J57: 3 | K57: 5 | L57: 6 | M57: 11 | N57: 12 | O57: 2 | P57: 10 | Q57: 7
F58: 1 | G58: 3 | H58: 9 | I58: 8 | J58: 2 | K58: 5 | L58: 6 | M58: 10 | N58: 11 | O58: 4 | P58: 12 | Q58: 7
F59: =F3 -> C1 | G59: =G3 -> C2 | H59: C3 | I59: VSD | J59: I1 | K59: I2 | L59: I3 | M59: I4 | N59: I5 | O59: PCM | P59: F1 | Q59: F2 | U59: BC | V59: =V3 -> C1 | W59: PCM | X59: I1 | Y59: C2 | Z59: I2 | AA59: I3
B61: Electricity costs [EUR/kWh] | C61: 0.205
B62: Lifetime [year] | C62: 16
A63: M | B63: Current M value | C63: 0.233 | U63: 60 | V63: 0 | W63: =U63/$U$43 -> 0.197842113
A64: N | B64: Current N value | C64: 245 | U64: 70 | V64: 0 | W64: 0.2308157985
U65: 80 | V65: 0 | W65: 0.263789484
U66: 90 | V66: 0 | W66: 0.2967631695
U67: 100 | V67: 0 | W67: 0.329736855
U68: 110 | V68: 0 | W68: 0.3627105405
U69: 120 | V69: 0 | W69: 0.395684226
D94: =(24-4)/20 -> 1
D95: =(24--18)/20 -> 2.1
D96: 1
D97: 1
D98: =1*(1*IF(bBuiltIn="Y",1.04,1)*D96*(NFresh/D6+D94*MFresh)) -> 
D99: =D98*D6 -> 
D100: =D99/D43 -> 
D102: =(D98-D45)/D45 -> 

Sheet LCC-Cold2
A1: Cells in blue font are user input parameters
A2: CECED modified model | C2: Cold2
A3: Modified compared to base line | C3: report VHK | D3: CECED modified | F3: C1 | G3: C2 | H3: C3 | I3: VSD | J3: I1 | K3: I2 | L3: I3 | M3: I5 | N3: PCM | O3: F1 | P3: F2 | Q3: D1 | R3: D2 | T3: I3a | V3: BC | W3: F2 | X3: PCM | Y3: C1 | Z3: I1 | AA3: C2 | AB3: VSD
D4: 1
A5: V | B5: Refrigerated volume [m3] | C5: =(C12-2*C17)*(C13-2*C17)*(C14-C15-2*C17)-C16^2*C12 -> 0.2238626 | D5: =(D12-2*D17)*(D13-2*D17)*(D14-D15-2*D17)-D16^2*(D12-2*D17) -> 0.2254626 | F5: =(F12-2*F17)*(F13-2*F17)*(F14-F15-2*F17)-F16^2*F12 -> 0.2238626 | G5: 0.2238626 | H5: 0.2238626 | I5: 0.2238626 | J5: 0.2230626 | K5: 0.2214626 | L5: 0.2198626 | M5: 0.2238626 | N5: 0.2238626 | O5: 0.2238626 | P5: 0.2238626 | Q5: 0.2238626 | R5: 0.2238626 | T5: =(T12-2*T17)*(T13-2*T17)*(T14-T15-2*T17)-T16^2*T12 -> 0.2317044681 | V5: =(V12-2*V17)*(V13-2*V17)*(V14-V15-2*V17)-V16^2*V12 -> 0.2238626 | W5: =(W12-2*W17)*(W13-2*W17)*(W14-W15-2*W17)-W16^2*W12 -> 0.2238626 | X5: 0.2238626 | Y5: 0.2238626 | Z5: 0.2230626 | AA5: 0.2230626 | AB5: 0.2230626 | AD5: =(AD12-2*AD17)*(AD13-2*AD17)*(AD14-AD15-2*AD17)-AD16^2*AD12 -> 0.2238626
B6: Refrigerated volume [dm3] | C6: =C5*1000 -> 223.8626 | D6: =D5*1000 -> 225.4626 | F6: =F5*1000 -> 223.8626 | G6: 223.8626 | H6: 223.8626 | I6: 223.8626 | J6: 223.0626 | K6: 221.4626 | L6: 219.8626 | M6: 223.8626 | N6: 223.8626 | O6: 223.8626 | P6: 223.8626 | Q6: 223.8626 | R6: 223.8626 | T6: =T5*1000 -> 231.7044681 | V6: =V5*1000 -> 223.8626 | W6: =W5*1000 -> 223.8626 | X6: 223.8626 | Y6: 223.8626 | Z6: 223.0626 | AA6: 223.0626 | AB6: 223.0626 | AD6: =AD5*1000 -> 223.8626
A7: A | B7: Refrigerated envelope surface without door [m2] | C7: =(2*(C12-C17)*(C13-C17)+2*((C14-C17-C15)*(C13-C17)-(C16+0.5*C17)^2)+1*(C12-C17)*(C14-C17-C15)) -> 1.99709 | D7: =(2*(D12-D17)*(D13-D17)+2*((D14-D17-D15)*(D13-D17)-(D16)^2)+1*(D12-D17)*(D14-D17-D15)) -> 2.00529 | F7: =(2*(F12-F17)*(F13-F17)+2*((F14-F17-F15)*(F13-F17)-(F16+0.5*F17)^2)+1*(F12-F17)*(F14-F17-F15)) -> 1.99709 | G7: 1.99709 | H7: 1.99709 | I7: 1.99709 | J7: 2.05997 | K7: 2.18843 | L7: 2.32049 | M7: 1.99709 | N7: 1.99709 | O7: 1.99709 | P7: 1.99709 | Q7: 1.99709 | R7: 1.99709 | T7: =2*((T12-T17)*(T13-T17)+(T14-T17-T15)*(T13-T17)-(T16+0.5*T17)^2+(T12-T17)*(T14-T17-T15)) -> 3.369506957 | V7: =(2*(V12-V17)*(V13-V17)+2*((V14-V17-V15)*(V13-V17)-(V16+0.5*V17)^2)+1*(V12-V17)*(V14-V17-V15)) -> 1.99709 | W7: =(2*(W12-W17)*(W13-W17)+2*((W14-W17-W15)*(W13-W17)-(W16+0.5*W17)^2)+1*(W12-W17)*(W14-W17-W15)) -> 1.99709 | X7: 1.99709 | Y7: 1.99709 | Z7: 2.05997 | AA7: 2.05997 | AB7: 2.05997 | AD7: =(2*(AD12-AD17)*(AD13-AD17)+2*((AD14-AD17-AD15)*(AD13-AD17)-(AD16+0.5*AD17)^2)+1*(AD12-AD17)*(AD14-AD17-AD15)) -> 1.99709
A8: Acd | B8: Condenser Area [m2] | C8: =C12*(C14-C15-C16) -> 0.48535 | D8: =D12*(D14-D15-D16) -> 0.48535 | F8: =F12*(F14-F15-F16) -> 0.48535 | G8: 0.48535 | H8: 0.48535 | I8: 0.48535 | J8: 0.51417 | K8: 0.57421 | L8: 0.63745 | M8: 0.48535 | N8: 0.48535 | O8: 0.48535 | P8: 0.48535 | Q8: 0.48535 | R8: 0.48535 | T8: =T12*(T14-T15-T16) -> 0.7623 | V8: =V12*(V14-V15-V16) -> 0.48535 | W8: =W12*(W14-W15-W16) -> 0.48535 | X8: 0.48535 | Y8: 0.48535 | Z8: 0.51417 | AA8: 0.51417 | AB8: 0.51417 | AD8: =AD12*(AD14-AD15-AD16) -> 0.48535
B9: Door area [m2] | C9: =(C12-C17)*(C14-C17-C15) -> 0.56753 | D9: =(D12-D17)*(D14-D17-D15) -> 0.56753 | F9: =(F12-F17)*(F14-F17-F15) -> 0.56753 | G9: 0.56753 | H9: 0.56753 | I9: 0.56753 | J9: 0.58344 | K9: 0.61586 | L9: 0.64908 | M9: 0.56753 | N9: 0.56753 | O9: 0.56753 | P9: 0.56753 | Q9: 0.56753 | R9: 0.56753 | V9: =(V12-V17)*(V14-V17-V15) -> 0.56753 | W9: =(W12-W17)*(W14-W17-W15) -> 0.56753 | X9: 0.56753 | Y9: 0.56753 | Z9: 0.58344 | AA9: 0.58344 | AB9: 0.58344 | AD9: =(AD12-AD17)*(AD14-AD17-AD15) -> 0.56753
B10: Door conductivity [W/m2K] | C10: 1.7 | D10: 1.7 | F10: 1.7 | G10: 1.7 | H10: 1.7 | I10: 1.7 | J10: 1.7 | K10: 1.7 | L10: 1.7 | M10: 1.7 | N10: 1.7 | O10: 1.7 | P10: 1.7 | Q10: 1.3 | R10: 0.8 | V10: 1.7 | W10: 1.7 | X10: 1.7 | Y10: 1.7 | Z10: 1.7 | AA10: 1.7 | AB10: 1.7 | AD10: 1.3
A11: Ldr | B11: Door perimeter length [m] | C11: =2*(C12+(C14-C15)) -> 3.242 | D11: =2*(D12+(D14-D15)) -> 3.242 | F11: =2*(F12+(F14-F15)) -> 3.242 | G11: 3.242 | H11: 3.242 | I11: 3.242 | J11: 3.322 | K11: 3.482 | L11: 3.642 | M11: 3.242 | N11: 3.242 | O11: 3.242 | P11: 3.242 | Q11: 3.242 | R11: 3.242 | T11: =2*(T12+(T14-T15)) -> 4.13 | V11: =2*(V12+(V14-V15)) -> 3.242 | W11: =2*(W12+(W14-W15)) -> 3.242 | X11: 3.242 | Y11: 3.242 | Z11: 3.322 | AA11: 3.322 | AB11: 3.322 | AD11: =2*(AD12+(AD14-AD15)) -> 3.242
A12: w | B12: width [m] | C12: 0.571 | D12: 0.571 | F12: 0.571 | G12: 0.571 | H12: 0.571 | I12: 0.571 | J12: 0.591 | K12: 0.631 | L12: 0.671 | M12: 0.571 | N12: 0.571 | O12: 0.571 | P12: 0.571 | Q12: 0.571 | R12: 0.571 | T12: 0.605 | V12: 0.571 | W12: 0.571 | X12: 0.571 | Y12: 0.571 | Z12: 0.591 | AA12: 0.591 | AB12: 0.591 | AD12: 0.571
A13: d | B13: depth [m] | C13: 0.5 | D13: 0.5 | F13: 0.5 | G13: 0.5 | H13: 0.5 | I13: 0.5 | J13: 0.52 | K13: 0.56 | L13: 0.6 | M13: 0.5 | N13: 0.5 | O13: 0.5 | P13: 0.5 | Q13: 0.5 | R13: 0.5 | T13: 0.63 | V13: 0.5 | W13: 0.5 | X13: 0.5 | Y13: 0.5 | Z13: 0.52 | AA13: 0.52 | AB13: 0.52 | AD13: 0.5
A14: h | B14: height [m] | C14: 1.1 | D14: 1.1 | F14: 1.1 | G14: 1.1 | H14: 1.1 | I14: 1.1 | J14: 1.12 | K14: 1.16 | L14: 1.2 | M14: 1.1 | N14: 1.1 | O14: 1.1 | P14: 1.1 | Q14: 1.1 | R14: 1.1 | T14: 1.51 | V14: 1.1 | W14: 1.1 | X14: 1.1 | Y14: 1.1 | Z14: 1.12 | AA14: 1.12 | AB14: 1.12 | AD14: 1.1
A15: a | B15: air passage height below unit [m] | C15: 0.05 | D15: 0.05 | F15: 0.05 | G15: 0.05 | H15: 0.05 | I15: 0.05 | J15: 0.05 | K15: 0.05 | L15: 0.05 | M15: 0.05 | N15: 0.05 | O15: 0.05 | P15: 0.05 | Q15: 0.05 | R15: 0.05 | T15: 0.05 | V15: 0.05 | W15: 0.05 | X15: 0.05 | Y15: 0.05 | Z15: 0.05 | AA15: 0.05 | AB15: 0.05 | AD15: 0.05
A16: b | B16: height and depth compressor area [m] | C16: 0.2 | D16: 0.2 | F16: 0.2 | G16: 0.2 | H16: 0.2 | I16: 0.2 | J16: 0.2 | K16: 0.2 | L16: 0.2 | M16: 0.2 | N16: 0.2 | O16: 0.2 | P16: 0.2 | Q16: 0.2 | R16: 0.2 | T16: 0.2 | V16: 0.2 | W16: 0.2 | X16: 0.2 | Y16: 0.2 | Z16: 0.2 | AA16: 0.2 | AB16: 0.2 | AD16: 0.2
A17: t | B17: average wall thickness [m] | C17: 0.02 | D17: 0.02 | F17: 0.02 | G17: 0.02 | H17: 0.02 | I17: 0.02 | J17: 0.03 | K17: 0.05 | L17: 0.07 | M17: 0.02 | N17: 0.02 | O17: 0.02 | P17: 0.02 | Q17: 0.02 | R17: 0.02 | T17: 0.08582325728 | V17: 0.02 | W17: 0.02 | X17: 0.02 | Y17: 0.02 | Z17: 0.03 | AA17: 0.03 | AB17: 0.03 | AD17: 0.02
A18: t | B18: average wall thickness from data base [m] | T18: =(12.717*T5+1.4858)/100 -> 0.04432385721
A19: Tc | B19: compartment temperature [C] | C19: 12 | D19: 12 | F19: 12 | G19: 12 | H19: 12 | I19: 12 | J19: 12 | K19: 12 | L19: 12 | M19: 12 | N19: 12 | O19: 12 | P19: 12 | Q19: 12 | R19: 12 | T19: 5 | V19: 12 | W19: 12 | X19: 12 | Y19: 12 | Z19: 12 | AA19: 12 | AB19: 12 | AD19: 12
A20: Ta | B20: ambient temperature [C] | C20: 25 | D20: 25 | F20: 25 | G20: 25 | H20: 25 | I20: 25 | J20: 25 | K20: 25 | L20: 25 | M20: 25 | N20: 25 | O20: 25 | P20: 25 | Q20: 25 | R20: 25 | T20: 25 | V20: 25 | W20: 25 | X20: 25 | Y20: 25 | Z20: 25 | AA20: 25 | AB20: 25 | AD20: 25
A21: k | B21: heat conductivity wall [W/m/K] | C21: 0.02 | D21: 0.02 | F21: 0.02 | G21: 0.02 | H21: 0.02 | I21: 0.02 | J21: 0.02 | K21: 0.02 | L21: 0.02 | M21: 0.02 | N21: 0.02 | O21: 0.02 | P21: 0.02 | Q21: 0.02 | R21: 0.02 | T21: 0.02 | V21: 0.02 | W21: 0.02 | X21: 0.02 | Y21: 0.02 | Z21: 0.02 | AA21: 0.02 | AB21: 0.02 | AD21: 0.02
A22: U wall | B22: heat transfer coefficient [W/m2/K] | C22: =C21/C17 -> 1 | D22: =D21/D17 -> 1 | F22: =F21/F17 -> 1 | G22: 1 | H22: 1 | I22: 1 | J22: 0.6666666667 | K22: 0.4 | L22: 0.2857142857 | M22: 0.76 | N22: =N21/N17 -> 1 | O22: =O21/O17 -> 1 | P22: =P21/P17 -> 1 | Q22: =Q21/Q17 -> 1 | R22: =R21/R17 -> 1 | T22: =T21/T17 -> 0.2330370652 | V22: =V21/V17 -> 1 | W22: =W21/W17 -> 1 | X22: 1 | Y22: 1 | Z22: 0.6666666667 | AA22: 0.6666666667 | AB22: 0.6666666667 | AD22: =AD21/AD17 -> 1
A23: Ptrans | B23: transmission heat loss [W] | C23: =C7*C22*(C20-C19)+C10*C9*(C20-C19) -> 38.504583 | D23: =D7*D22*(D20-D19)+D10*D9*(D20-D19) -> 38.611183 | F23: =F7*F22*(F20-F19)+F10*F9*(F20-F19) -> 38.504583 | G23: 38.504583 | H23: 38.504583 | I23: 38.504583 | J23: 30.74709733 | K23: 24.990342 | L23: 22.96363086 | M23: 32.2736622 | N23: 38.504583 | O23: 38.504583 | P23: 38.504583 | Q23: 35.553427 | R23: 31.864482 | T23: =T7*T22*(T20-T19) -> 15.70440024 | V23: =V7*V22*(V20-V19)+V10*V9*(V20-V19) -> 38.504583 | W23: =W7*W22*(W20-W19)+W10*W9*(W20-W19) -> 38.504583 | X23: 38.504583 | Y23: 38.504583 | Z23: 30.74709733 | AA23: 30.74709733 | AB23: 30.74709733 | AD23: =AD7*AD22*(AD20-AD19)+AD10*AD9*(AD20-AD19) -> 35.553427
A24: Udoor | B24: heat transfer coeff. door gasket [W/mK] | C24: 0.08 | D24: 0.08 | F24: 0.08 | G24: 0.08 | H24: 0.08 | I24: 0.08 | J24: 0.08 | K24: 0.08 | L24: 0.06 | M24: 0.08 | N24: 0.08 | O24: 0.08 | P24: 0.08 | Q24: 0.08 | R24: 0.08 | T24: 0.05 | V24: 0.08 | W24: 0.08 | X24: 0.08 | Y24: 0.08 | Z24: 0.08 | AA24: 0.08 | AB24: 0.08 | AD24: 0.08
A25: Pdoor | B25: door heat loss [W] | C25: =C24*C11*(C20-C19) -> 3.37168 | D25: =D24*D11*(D20-D19) -> 3.37168 | F25: =F24*F11*(F20-F19) -> 3.37168 | G25: 3.37168 | H25: 3.37168 | I25: 3.37168 | J25: 3.45488 | K25: 3.62128 | L25: 2.84076 | M25: 3.37168 | N25: 3.37168 | O25: 3.37168 | P25: 3.37168 | Q25: 3.37168 | R25: 3.37168 | T25: =T24*T11*(T20-T19) -> 4.13 | V25: =V24*V11*(V20-V19) -> 3.37168 | W25: =W24*W11*(W20-W19) -> 3.37168 | X25: 3.37168 | Y25: 3.37168 | Z25: 3.45488 | AA25: 3.45488 | AB25: 3.45488 | AD25: =AD24*AD11*(AD20-AD19) -> 3.37168
A26: Ploss_tot | B26: total heat power loss (Ptrans+Pdoor) [W] | C26: =C23+C25 -> 41.876263 | D26: =D23+D25 -> 41.982863 | F26: =F23+F25 -> 41.876263 | G26: 41.876263 | H26: 41.876263 | I26: 41.876263 | J26: 34.20197733 | K26: 28.611622 | L26: 25.80439086 | M26: 35.6453422 | N26: 41.876263 | O26: =O23+O25+2.2*1000/(365*24) -> 42.12740455 | P26: =P23+P25 -> 41.876263 | Q26: =Q23+Q25 -> 38.925107 | R26: =R23+R25 -> 35.236162 | T26: =T23+T25 -> 19.83440024 | V26: =V23+V25 -> 41.876263 | W26: =W23+W25 -> 41.876263 | X26: 41.876263 | Y26: 41.876263 | Z26: 34.20197733 | AA26: 34.20197733 | AB26: 34.20197733 | AD26: =AD23+AD25 -> 38.925107
A27: Ploss_tot_spec | B27: specific total heat loss [W/m3] | C27: =C26/C6 -> 0.1870623454 | D27: =D26/D6 -> 0.1862076593 | F27: =F26/F6 -> 0.1870623454 | G27: 0.1870623454 | H27: 0.1870623454 | I27: 0.1870623454 | J27: 0.1533290535 | K27: 0.1291939226 | L27: 0.1173659861 | M27: 0.1592286617 | N27: 0.1870623454 | O27: 0.1881842012 | P27: 0.1870623454 | Q27: 0.1738794555 | R27: 0.1574008432 | T27: =T26/T6 -> 0.08560214831 | V27: =V26/V6 -> 0.1870623454 | W27: =W26/W6 -> 0.1870623454 | X27: 0.1870623454 | Y27: 0.1870623454 | Z27: 0.1533290535 | AA27: 0.1533290535 | AB27: 0.1533290535 | AD27: =AD26/AD6 -> 0.1738794555
A28: Eloss_tot | B28: annual heat loss [kWhth/a] | C28: =C26*365*24/1000 -> 366.8360639 | D28: =D26*365*24/1000 -> 367.7698799 | F28: =F26*365*24/1000 -> 366.8360639 | G28: 366.8360639 | H28: 366.8360639 | I28: 366.8360639 | J28: 299.6093214 | K28: 250.6378087 | L28: 226.0464639 | M28: 312.2531977 | N28: 366.8360639 | O28: 369.0360639 | P28: 366.8360639 | Q28: 340.9839373 | R28: 308.6687791 | T28: =T26*365*24/1000 -> 173.7493461 | V28: =V26*365*24/1000 -> 366.8360639 | W28: =W26*365*24/1000 -> 366.8360639 | X28: 366.8360639 | Y28: 366.8360639 | Z28: 299.6093214 | AA28: 299.6093214 | AB28: 299.6093214 | AD28: =AD26*365*24/1000 -> 340.9839373
A29: dTev | B29: evaporator temperature difference [K] | C29: 22 | D29: 22 | F29: 22 | G29: 22 | H29: 24.6 | I29: 15.4 | J29: 19.8 | K29: 18.1 | L29: 17.2 | M29: 20.2 | N29: 22 | O29: 18.4 | P29: 22.4 | Q29: 21.2 | R29: 20.1 | T29: 13.7 | V29: 22 | W29: 22.4 | X29: 22.4 | Y29: 22.4 | Z29: 20.2 | AA29: 19.4 | AB29: 12.5 | AD29: 21.2
A30: dTcd | B30: condenser temperature difference [K] | C30: 13 | D30: 13 | F30: 12.7 | G30: 12.5 | H30: 14 | I30: 8.8 | J30: 13.9 | K30: 14.7 | L30: 15.1 | M30: 13.8 | N30: 13 | O30: 14.6 | P30: 9.6 | Q30: 13.4 | R30: 13.8 | T30: 11.1 | V30: 13 | W30: 9.6 | X30: 9.6 | Y30: 9.3 | Z30: 9.5 | AA30: 9.3 | AB30: 5.8 | AD30: 13.4
A31: Tev | B31: evaporator temperature [C] | C31: =C19-C29 -> -10 | D31: =D19-D29 -> -10 | F31: =F19-F29 -> -10 | G31: -10 | H31: -12.6 | I31: -3.4 | J31: -7.8 | K31: -6.1 | L31: -5.2 | M31: -8.2 | N31: -10 | O31: -6.4 | P31: -10.4 | Q31: -9.2 | R31: -8.1 | T31: =T19-T29 -> -8.7 | V31: =V19-V29 -> -10 | W31: =W19-W29 -> -10.4 | X31: -10.4 | Y31: -10.4 | Z31: -8.2 | AA31: -7.4 | AB31: -0.5 | AD31: =AD19-AD29 -> -9.2
A32: Tcd | B32: condenser temperature [C] | C32: =C20+C30 -> 38 | D32: =D20+D30 -> 38 | F32: =F20+F30 -> 37.7 | G32: 37.5 | H32: 39 | I32: 33.8 | J32: 38.9 | K32: 39.7 | L32: 40.1 | M32: 38.8 | N32: 38 | O32: 39.6 | P32: 34.6 | Q32: 38.4 | R32: 38.8 | T32: =T20+T30 -> 36.1 | V32: =V20+V30 -> 38 | W32: =W20+W30 -> 34.6 | X32: 34.6 | Y32: 34.3 | Z32: 34.5 | AA32: 34.3 | AB32: 30.8 | AD32: =AD20+AD30 -> 38.4
A33: Pnom | B33: nominal compressor cooling power [W] | C33: 63 | D33: 63 | F33: 63 | G33: 63 | H33: 80 | I33: 31 | J33: 63 | K33: 63 | L33: 63 | M33: 63 | N33: 63 | O33: 63 | P33: 63 | Q33: 63 | R33: 63 | T33: 63 | V33: 63 | W33: 63 | X33: 63 | Y33: 63 | Z33: 63 | AA33: 63 | AB33: 31 | AD33: 63
A34: COPnom | B34: nominal at -23.4/54.4 (subcooling 32.2) [-] | C34: 1.53 | D34: 1.53 | F34: 1.73 | G34: 1.85 | H34: 1.98 | I34: 1.5 | J34: 1.53 | K34: 1.53 | L34: 1.53 | M34: 1.53 | N34: 1.53 | O34: 1.53 | P34: 1.53 | Q34: 1.53 | R34: 1.53 | T34: 1.644 | V34: 1.53 | W34: 1.53 | X34: 1.53 | Y34: 1.73 | Z34: 1.73 | AA34: 1.85 | AB34: 1.5 | AD34: 1.53
A35: Pratio | B35: Ratio Pc/Pcnom | C35: =Pc_c1+Pc_c2*C31+Pc_c3*C32+Pc_c4*C31^2+Pc_c5*C31*C32+Pc_c6*C32^2+Pc_c7*C31^3+Pc_c8*C32*C31^2+Pc_c9*C31*C32^2+Pc_c10*C32^3 -> 2.030501558 | D35: =Pc_c1+Pc_c2*D31+Pc_c3*D32+Pc_c4*D31^2+Pc_c5*D31*D32+Pc_c6*D32^2+Pc_c7*D31^3+Pc_c8*D32*D31^2+Pc_c9*D31*D32^2+Pc_c10*D32^3 -> 2.030501558 | F35: =Pc_c1+Pc_c2*F31+Pc_c3*F32+Pc_c4*F31^2+Pc_c5*F31*F32+Pc_c6*F32^2+Pc_c7*F31^3+Pc_c8*F32*F31^2+Pc_c9*F31*F32^2+Pc_c10*F32^3 -> 2.036400607 | G35: 2.040333984 | H35: 1.789495782 | I35: 2.785818972 | J35: 2.215014403 | K35: 2.363259805 | L35: 2.445072911 | M35: 2.179287779 | N35: 2.030501558 | O35: 2.335696808 | P35: 2.061099757 | Q35: 2.094806438 | R35: 2.188701291 | T35: =Pc_c1+Pc_c2*T31+Pc_c3*T32+Pc_c4*T31^2+Pc_c5*T31*T32+Pc_c6*T32^2+Pc_c7*T31^3+Pc_c8*T32*T31^2+Pc_c9*T31*T32^2+Pc_c10*T32^3 -> 2.187948669 | V35: =Pc_c1+Pc_c2*V31+Pc_c3*V32+Pc_c4*V31^2+Pc_c5*V31*V32+Pc_c6*V32^2+Pc_c7*V31^3+Pc_c8*V32*V31^2+Pc_c9*V31*V32^2+Pc_c10*V32^3 -> 2.030501558 | W35: =Pc_c1+Pc_c2*W31+Pc_c3*W32+Pc_c4*W31^2+Pc_c5*W31*W32+Pc_c6*W32^2+Pc_c7*W31^3+Pc_c8*W32*W31^2+Pc_c9*W31*W32^2+Pc_c10*W32^3 -> 2.061099757 | X35: 2.061099757 | Y35: 2.066940044 | Z35: 2.268780246 | AA35: 2.351429944 | AB35: 3.205212584 | AD35: =Pc_c1+Pc_c2*AD31+Pc_c3*AD32+Pc_c4*AD31^2+Pc_c5*AD31*AD32+Pc_c6*AD32^2+Pc_c7*AD31^3+Pc_c8*AD32*AD31^2+Pc_c9*AD31*AD32^2+Pc_c10*AD32^3 -> 2.094806438
A36: P | B36: Cooling power | C36: =C33*C35 -> 127.9215982 | D36: =D33*D35 -> 127.9215982 | F36: =F33*F35 -> 128.2932382 | G36: 128.541041 | H36: 143.1596626 | I36: 86.36038813 | J36: 139.5459074 | K36: 148.8853677 | L36: 154.0395934 | M36: 137.2951301 | N36: 127.9215982 | O36: 147.1488989 | P36: 129.8492847 | Q36: 131.9728056 | R36: 137.8881813 | T36: =T33*T35 -> 137.8407662 | V36: =V33*V35 -> 127.9215982 | W36: =W33*W35 -> 129.8492847 | X36: 129.8492847 | Y36: 130.2172228 | Z36: 142.9331555 | AA36: 148.1400865 | AB36: 99.36159011 | AD36: =AD33*AD35 -> 131.9728056
A37: Load factor | B37: Ratio of heat load to cooling power | C37: =C26/C36 -> 0.3273588167 | D37: =D26/D36 -> 0.3281921396 | F37: =F26/F36 -> 0.3264105231 | G37: 0.3257812655 | H37: 0.2925144014 | I37: 0.4849012829 | J37: 0.2450948077 | K37: 0.1921721553 | L37: 0.1675179107 | M37: 0.2596256851 | N37: 0.3273588167 | O37: 0.2862909941 | P37: 0.3224989887 | Q37: 0.294947939 | R37: 0.2555415675 | T37: =T26/T36 -> 0.1438935722 | V37: =V26/V36 -> 0.3273588167 | W37: =W26/W36 -> 0.3224989887 | X37: 0.3224989887 | Y37: 0.3215877448 | Z37: 0.2392865198 | AA37: 0.2308759104 | AB37: 0.3442172906 | AD37: =AD26/AD36 -> 0.294947939
A38: Cycling losses | B38: Part load losses (in % COP) | C38: =0.125*(1-C26/C36) -> 0.08408014791 | D38: =0.125*(1-D26/D36) -> 0.08397598255 | F38: =0.125*(1-F26/F36) -> 0.08419868461 | G38: 0.08427734181 | H38: 0.08843569982 | I38: 0.06438733963 | J38: 0.09436314904 | K38: 0.1009784806 | L38: 0.1040602612 | M38: 0.09254678937 | N38: =0.125*(1-N26/N36)*0.5 -> 0.04204007396 | O38: =0.125*(1-O26/O36) -> 0.08921362573 | P38: =0.125*(1-P26/P36) -> 0.08468762642 | Q38: =0.125*(1-Q26/Q36) -> 0.08813150763 | R38: =0.125*(1-R26/R36) -> 0.09305730406 | T38: =0.125*(1-T26/T36) -> 0.1070133035 | V38: =0.125*(1-V26/V36) -> 0.08408014791 | W38: =0.125*(1-W26/W36) -> 0.08468762642 | X38: =0.125*(1-X26/X36)*0.5 -> 0.04234381321 | Y38: =0.125*(1-Y26/Y36)*0.5 -> 0.04240076595 | Z38: =0.125*(1-Z26/Z36)*0.5 -> 0.04754459251 | AA38: =0.125*(1-AA26/AA36)*0.5 -> 0.0480702556 | AB38: =0.125*(1-AB26/AB36) -> 0.08197283868 | AD38: =0.125*(1-AD26/AD36) -> 0.08813150763
A39: COP ratio | B39: Ratio COP/ COPnom | C39: =COP_c1+COP_c2*C31+COP_c3*C32+COP_c4*C31^2+COP_c5*C31*C32+COP_c6*C32^2+COP_c7*C31^3+COP_c8*C32*C31^2+COP_c9*C31*C32^2+COP_c10*C32^3 -> 1.652002718 | D39: =COP_c1+COP_c2*D31+COP_c3*D32+COP_c4*D31^2+COP_c5*D31*D32+COP_c6*D32^2+COP_c7*D31^3+COP_c8*D32*D31^2+COP_c9*D31*D32^2+COP_c10*D32^3 -> 1.652002718 | F39: =COP_c1+COP_c2*F31+COP_c3*F32+COP_c4*F31^2+COP_c5*F31*F32+COP_c6*F32^2+COP_c7*F31^3+COP_c8*F32*F31^2+COP_c9*F31*F32^2+COP_c10*F32^3 -> 1.663864966 | G39: 1.671855011 | H39: 1.509912027 | I39: 2.209402425 | J39: 1.713348278 | K39: 1.758415301 | L39: 1.783966394 | M39: 1.69936449 | N39: 1.652002718 | O39: 1.748594151 | P39: 1.775998623 | Q39: 1.671054551 | R39: 1.703870287 | T39: =COP_c1+COP_c2*T31+COP_c3*T32+COP_c4*T31^2+COP_c5*T31*T32+COP_c6*T32^2+COP_c7*T31^3+COP_c8*T32*T31^2+COP_c9*T31*T32^2+COP_c10*T32^3 -> 1.79142045 | V39: =COP_c1+COP_c2*V31+COP_c3*V32+COP_c4*V31^2+COP_c5*V31*V32+COP_c6*V32^2+COP_c7*V31^3+COP_c8*V32*V31^2+COP_c9*V31*V32^2+COP_c10*V32^3 -> 1.652002718 | W39: =COP_c1+COP_c2*W31+COP_c3*W32+COP_c4*W31^2+COP_c5*W31*W32+COP_c6*W32^2+COP_c7*W31^3+COP_c8*W32*W31^2+COP_c9*W31*W32^2+COP_c10*W32^3 -> 1.775998623 | X39: 1.775998623 | Y39: 1.789432615 | Z39: 1.891421737 | AA39: 1.944187168 | AB39: 2.61942587 | AD39: =COP_c1+COP_c2*AD31+COP_c3*AD32+COP_c4*AD31^2+COP_c5*AD31*AD32+COP_c6*AD32^2+COP_c7*AD31^3+COP_c8*AD32*AD31^2+COP_c9*AD31*AD32^2+COP_c10*AD32^3 -> 1.671054551
A40: COP | B40: COP at actual Tev and Tcd | C40: =C39*C34 -> 2.527564159 | D40: =D39*D34 -> 2.527564159 | F40: =F39*F34 -> 2.878486391 | G40: 3.092931771 | H40: 2.989625813 | I40: 3.314103638 | J40: 2.621422865 | K40: 2.690375411 | L40: 2.729468584 | M40: 2.60002767 | N40: 2.527564159 | O40: 2.675349052 | P40: 2.717277893 | Q40: 2.556713463 | R40: 2.606921539 | T40: =T39*T34 -> 2.945095219 | V40: =V39*V34 -> 2.527564159 | W40: =W39*W34 -> 2.717277893 | X40: 2.717277893 | Y40: 3.095718424 | Z40: 3.272159605 | AA40: 3.59674626 | AB40: 3.929138804 | AD40: =AD39*AD34 -> 2.556713463
A41: COP cyc | B41: avg COP at actual Tev and Tcd | C41: =C40*(1-C38) -> 2.31504619 | D41: =D40*(1-D38) -> 2.315309475 | F41: =F40*(1-F38) -> 2.636121624 | G41: 2.832267703 | H41: 2.725236162 | I41: 3.100717321 | J41: 2.374057148 | K41: 2.41870539 | L41: 2.44543937 | M41: 2.359403457 | N41: 2.421305175 | O41: 2.436671463 | P41: 2.487158078 | Q41: 2.331386451 | R41: 2.364328449 | T41: =T40*(1-T38) -> 2.629930851 | V41: =V40*(1-V38) -> 2.31504619 | W41: =W40*(1-W38) -> 2.487158078 | X41: 2.602217986 | Y41: 2.964457592 | Z41: 3.11658611 | AA41: 3.423849748 | AB41: 3.607056143 | AD41: =AD40*(1-AD38) -> 2.331386451
A42: Eaux | B42: electricity CPU and possible fan [kWh/a] | C42: 8.8 | D42: 8.8 | F42: 8.8 | G42: 8.8 | H42: 8.8 | I42: 13.1 | J42: 8.8 | K42: 8.8 | L42: 8.8 | M42: 8.8 | N42: 8.8 | O42: 11 | P42: 10.9 | Q42: 8.8 | R42: 8.8 | T42: 4.4 | V42: 8.8 | W42: 10.9 | X42: 10.9 | Y42: 10.9 | Z42: 10.9 | AA42: 10.9 | AB42: =10.9+4.3 -> 15.2 | AD42: 8.8
A43: Eaux | B43: electricity CPU and possible fan [W] | C43: =C42*1000/(365*25) -> 0.9643835616 | D43: =D42*1000/(365*25) -> 0.9643835616 | F43: =F42*1000/(365*25) -> 0.9643835616 | G43: 0.9643835616 | H43: 0.9643835616 | I43: 1.435616438 | J43: 0.9643835616 | K43: 0.9643835616 | L43: 0.9643835616 | M43: 0.9643835616 | N43: 0.9643835616 | O43: 1.205479452 | P43: 1.194520548 | Q43: 0.9643835616 | R43: 0.9643835616 | T43: =T42*1000/(365*25) -> 0.4821917808 | V43: =V42*1000/(365*25) -> 0.9643835616 | W43: =W42*1000/(365*25) -> 1.194520548 | X43: 1.194520548 | Y43: 1.194520548 | Z43: 1.194520548 | AA43: 1.194520548 | AB43: 1.665753425 | AD43: =AD42*1000/(365*25) -> 0.9643835616
A44: AE | B44: annual electricity consumption [kWh/a] | C44: =C28/C41+C42 -> 167.2573411 | D44: =D28/D41+D42 -> 167.6426445 | F44: =F28/F41+F42 -> 147.9574883 | G44: 138.3202652 | H44: 143.4070733 | I44: 131.4068387 | J44: 135.001394 | K44: 112.4247779 | L44: 101.2359306 | M44: 141.1441299 | N44: 160.3034403 | O44: 162.4508909 | P44: 158.3920581 | Q44: 155.0580076 | R44: 139.3524109 | T44: =T28/T41+T42 -> 70.46612721 | V44: =V28/V41+V42 -> 167.2573411 | W44: =W28/W41+W42 -> 158.3920581 | X44: 151.8705359 | Y44: 134.6447501 | Z44: 107.0338179 | AA44: 98.40656234 | AB44: 98.26200668 | AD44: =AD28/AD41+AD42 -> 155.0580076
A45: SAE | B45: standard annual electricity consumption [kWh/a] | C45: =C6*(C20-C19)/20*M_Cold1+N_Cold1 -> 278.9039908 | D45: =D6*(D20-D19)/20*M_Cold1+N_Cold1 -> 279.1463108 | F45: =F6*(F20-F19)/20*M_Cold1+N_Cold1 -> 278.9039908 | G45: 278.9039908 | H45: 278.9039908 | I45: 278.9039908 | J45: 278.7828308 | K45: 278.5405108 | L45: 278.2981908 | M45: 278.9039908 | N45: 278.9039908 | O45: 278.9039908 | P45: 278.9039908 | Q45: 278.9039908 | R45: 278.9039908 | T45: =T6*M_Cold1+N_Cold1 -> 298.9871411 | V45: =V6*(V20-V19)/20*M_Cold1+N_Cold1 -> 278.9039908 | W45: =W6*(W20-W19)/20*M_Cold1+N_Cold1 -> 278.9039908 | X45: 278.9039908 | Y45: 278.9039908 | Z45: 278.7828308 | AA45: 278.7828308 | AB45: 278.7828308 | AD45: =AD6*(AD20-AD19)/20*M_Cold1+N_Cold1 -> 278.9039908
A46: EEI | B46: energy efficiency index [-] | C46: =C44/C45 -> 0.5996950443 | D46: =D44/D45 -> 0.6005547558 | F46: =F44/F45 -> 0.5304961318 | G46: 0.4959422229 | H46: 0.5141807865 | I46: 0.4711543865 | J46: 0.4842528989 | K46: 0.4036209223 | L46: 0.363767836 | M46: 0.5060670862 | N46: 0.5747620886 | O46: 0.5824616939 | P46: 0.5679088983 | Q46: 0.5559547829 | R46: 0.4996429434 | T46: =T44/T45 -> 0.2356828021 | V46: =V44/V45 -> 0.5996950443 | W46: =W44/W45 -> 0.5679088983 | X46: 0.5445262201 | Y46: 0.4827637989 | Z46: 0.3839326029 | AA46: 0.3529864521 | AB46: 0.3524679278 | AD46: =AD44/AD45 -> 0.5559547829
A47: q-model | B47: Model at Ta=25 C [kWh/dm3] | C47: =C44/C6 -> 0.7471428506 | D47: =D44/D6 -> 0.7435496819 | F47: =F44/F6 -> 0.6609299108 | G47: 0.617880187 | H47: 0.6406030901 | I47: 0.5869977329 | J47: 0.6052175217 | K47: 0.5076467894 | L47: 0.4604508935 | M47: 0.6304944637 | N47: 0.7160795964 | O47: 0.7256723138 | P47: 0.7075414033 | Q47: 0.6926481137 | R47: 0.6224908085 | T47: =T44/T6 -> 0.3041207093 | V47: =V44/V6 -> 0.7471428506 | W47: =W44/W6 -> 0.7075414033 | X47: 0.6784095953 | Y47: 0.6014615666 | Z47: 0.4798375786 | AA47: 0.4411611913 | AB47: 0.4405131415 | AD47: =AD44/AD6 -> 0.6926481137
B49: Consumption compared to base case | F49: =(F44-$C44)/$C44 -> -0.115390169 | G49: =(G44-$C44)/$C44 -> -0.1730093027 | H49: -0.142596239 | I49: -0.2143433717 | J49: -0.1928522057 | K49: -0.3278335222 | L49: -0.3947295231 | M49: -0.1561259494 | N49: -0.04157605758 | O49: -0.02873685644 | P49: -0.05300384968 | Q49: =(Q44-$C44)/$C44 -> -0.07293750695 | R49: -0.1668382987 | T49: =(T44-$C44)/$C44 -> -0.5786963565 | W49: =(W44-$C44)/$C44 -> -0.05300384968 | X49: -0.09199479763 | Y49: -0.1949845118 | Z49: -0.3600650522 | AA49: -0.4116457807 | AB49: -0.4125100517
A51: U cond | B51: Check on condenser heat transfer [W/m2/K] | C51: =(C36+C36/C41)/(2*C8)/C30 -> 14.51594848 | D51: =(D36+D36/D41)/(2*D8)/D30 -> 14.51545054 | F51: =(F36+F36/F41)/(2*F8)/F30 -> 14.35449685 | G51: 14.33403 | H51: 14.39982678 | I51: 13.37040434 | J51: 13.87480345 | K51: 12.4655843 | L51: 11.27371385 | M51: 14.59321464 | N51: 14.32378451 | O51: 14.6440152 | P51: 19.53671518 | Q51: 14.49790896 | R51: 14.64716276 | T51: =(T36+T36/T41)/(2*T8)/T30 -> 11.24223881 | V51: =(V36+V36/V41)/(2*V8)/V30 -> 14.51594848 | W51: 19.53671518 | X51: 19.28899564 | Y51: 19.29030014 | Z51: 19.32549918 | AA51: 20.01421618 | AB51: 21.27768685
B53: Price increase (in terms of final sales price) | F53: 38.88 | G53: 63.82 | H53: 82.13 | I53: 90.3 | J53: 70.46 | K53: 227.57 | L53: 398.64 | M53: 125.17 | N53: 12.41 | O53: 44.33 | P53: 10.81 | Q53: 66 | R53: 200 | W53: =INDEX($F53:$R53,MATCH(W3,$F3:$R3,0)) -> 10.81 | X53: =INDEX($F53:$R53,MATCH(X3,$F3:$R3,0)) -> 12.41 | Y53: 38.88 | Z53: =INDEX($F53:$R53,MATCH(Z3,$F3:$R3,0)) -> 70.46 | AA53: 63.82 | AB53: 90.3
B54: Price [EUR] | C54: 1344 | F54: =$C54+F53 -> 1382.88 | G54: =$C54+G53 -> 1407.82 | H54: 1426.13 | I54: 1434.3 | J54: 1414.46 | K54: 1571.57 | L54: 1742.64 | M54: 1469.17 | N54: 1356.41 | O54: 1388.33 | P54: 1354.81 | Q54: =$C54+Q53 -> 1410 | R54: 1544 | V54: =C54 -> 1344 | W54: =V54+W53 -> 1354.81 | X54: =W54+X53 -> 1367.22 | Y54: 1406.1 | Z54: =Y54+Z53 -> 1476.56 | AA54: =Z54+AA53 -> 1540.38 | AB54: =AA54+AB53 -> 1630.68
B56: Simple Pay Back [year] | F56: =-F53/(F57-$C57) -> 9.826942105 | G56: =-G53/(G57-$C57) -> 10.75841504 | H56: 16.79788881 | I56: 12.28679586 | J56: 10.65562625 | K56: 20.24522465 | L56: 29.45385976 | M56: 23.3822398 | N56: 8.705413942 | O56: 44.99035535 | P56: 5.948113278 | Q56: =-Q53/(Q57-$C57) -> 26.39088603 | R56: 34.96191347 | W56: =-(W54-$V$54)/(W57-$V$57) -> 5.948113278 | X56: =-(X54-$V$54)/(X57-$V$57) -> 7.361391196 | Y56: 9.288646501 | Z56: 10.73723541 | AA56: 13.91344058 | AB56: 20.26860274
B57: Annual Electricity costs [EUR] | C57: =C44*ElCosts -> 34.28775493 | F57: =F44*ElCosts -> 30.33128509 | G57: 28.35565436 | H57: 29.39845003 | I57: 26.93840193 | J57: 27.67528576 | K57: 23.04707946 | L57: 20.75336578 | M57: 28.93454664 | N57: 32.86220525 | O57: 33.30243264 | P57: 32.47037192 | Q57: 31.78689156 | R57: 28.56724423 | V57: =V44*ElCosts -> 34.28775493 | W57: 32.47037192 | X57: 31.13345985 | Y57: 27.60217377 | Z57: 21.94193266 | AA57: 20.17334528 | AB57: 20.14371137
B58: LLC [EUR] | C58: =C54+C57*Lifetime -> 1892.604079 | F58: =F54+F57*Lifetime -> 1868.180561 | G58: 1861.51047 | H58: 1896.5052 | I58: 1865.314431 | J58: 1857.264572 | K58: 1940.323271 | L58: 2074.693852 | M58: 1932.122746 | N58: 1882.205284 | O58: 1921.168922 | P58: 1874.335951 | Q58: =Q54+Q57*Lifetime -> 1918.590265 | R58: 2001.075908 | V58: =V54+V57*Lifetime -> 1892.604079 | W58: =W54+W57*Lifetime -> 1874.335951 | X58: =X54+X57*Lifetime -> 1865.355358 | Y58: 1847.73478 | Z58: 1827.630923 | AA58: 1863.153524 | AB58: 1952.979382
B59: Ranking | F59: 4 | G59: 6 | H59: 8 | I59: 7 | J59: 5 | K59: 10 | L59: 12 | M59: 11 | N59: 3 | O59: 13 | P59: 2 | Q59: 1 | R59: 9
F60: 3 | G60: 5 | H60: 7 | I60: 6 | J60: 4 | K60: 8 | L60: 11 | M60: 9 | N60: 2 | P60: 1 | Q60: 10 | R60: 12
F61: =F3 -> C1 | G61: =G3 -> C2 | H61: C3 | I61: VSD | J61: I1 | K61: I2 | L61: I3 | M61: I5 | N61: PCM | O61: F1 | P61: F2 | Q61: =Q3 -> D1 | R61: D2 | V61: BC | W61: =W3 -> F2 | X61: PCM | Y61: C1 | Z61: I1 | AA61: C2 | AB61: VSD
B63: Electricity costs [EUR/kWh] | C63: 0.205
B64: Lifetime [year] | C64: 16
A65: M | B65: Current M value | C65: 0.233 | V65: 80 | W65: 0 | X65: =V65/$V$45 -> 0.2868370574
A66: N | B66: Current N value | C66: 245 | V66: 100 | W66: 0 | X66: =V66/$V$45 -> 0.3585463217
V67: 120 | W67: 0 | X67: 0.430255586
V68: 140 | W68: 0 | X68: 0.5019648504
V69: 160 | W69: 0 | X69: 0.5736741147
V70: 180 | W70: 0 | X70: 0.6453833791
V71: 200 | W71: 0 | X71: 0.7170926434
D96: =(24-4)/20 -> 1
D97: =(24--18)/20 -> 2.1
D98: 1
D99: 1
D100: =1*(1*IF(bBuiltIn="Y",1.04,1)*D98*(NFresh/D6+D96*MFresh)) -> 
D101: =D100*D6 -> 
D102: =D101/D45 -> 
D104: =(D100-D47)/D47 -> 

Sheet LCC-Cold7
A1: Cells in blue font are user input parameters | C1: Ratio Vfresh | D1: 0.73 | F1: r equivalent | G1: =2.15*(1-D1)+1*(D1) -> 1.3105 | I1: t wall ratio | J1: 0.84
A2: CECED modified model | C2: Category 7
A3: Modified compared to base line | C3: report VHK | D3: CECED modified | F3: C1 | G3: C2 | H3: C3 | I3: VSD | J3: I1 | K3: I2 | L3: I3 | M3: I4 | N3: I5 | O3: PCM | P3: F1 | Q3: F2 | S3: BC | T3: F2 | U3: PCM | V3: C1 | W3: C2 | X3: I1 | Y3: C3 | Z3: I2
C4: 1 | D4: 1
A5: V | B5: Refrigerated volume [m3] | C5: =(C16-2*C22)*(C17-2*C22)*(C18-C20-2*C22)-C21^2*C16-(C16-2*C22)*(C17-2*C22)*C22 -> 0.296656 | D5: =(D16-2*D22)*(D17-2*D22)*(D18-D20-2*D22)-D21^2*(D16-2*D22)-(D16-2*D22)*(D17-2*D22)*D22 -> 0.301056 | F5: =(F16-2*F22)*(F17-2*F22)*(F18-F20-2*F22)-F21^2*(F16-2*F22)-(F16-2*F22)*(F17-2*F22)*F22 -> 0.301056 | G5: 0.301056 | H5: 0.301056 | I5: 0.301056 | J5: 0.298752 | K5: 0.296448 | L5: 0.294144 | M5: =(M16-2*M22)*(M17-2*M22)*(M18-M20-2*M22)-M21^2*(M16-2*M22)-(M16-2*M22)*(M17-2*M22)*M22 -> 0.301056 | N5: 0.301056 | O5: =(O16-2*O22)*(O17-2*O22)*(O18-O20-2*O22)-O21^2*(O16-2*O22)-(O16-2*O22)*(O17-2*O22)*O22 -> 0.301056 | P5: =(P16-2*P22)*(P17-2*P22)*(P18-P20-2*P22)-P21^2*(P16-2*P22)-(P16-2*P22)*(P17-2*P22)*P22 -> 0.301056 | Q5: 0.301056 | S5: =(S16-2*S22)*(S17-2*S22)*(S18-S20-2*S22)-S21^2*(S16-2*S22)-(S16-2*S22)*(S17-2*S22)*S22 -> 0.301056 | T5: =(T16-2*T22)*(T17-2*T22)*(T18-T20-2*T22)-T21^2*(T16-2*T22)-(T16-2*T22)*(T17-2*T22)*T22 -> 0.301056 | U5: =(U16-2*U22)*(U17-2*U22)*(U18-U20-2*U22)-U21^2*(U16-2*U22)-(U16-2*U22)*(U17-2*U22)*U22 -> 0.301056 | V5: 0.301056 | W5: 0.301056 | X5: 0.298752 | Y5: 0.298752 | Z5: 0.296448
B6: Refrigerated volume [dm3] | C6: =C5*1000 -> 296.656 | D6: =D5*1000 -> 301.056 | F6: =F5*1000 -> 301.056 | G6: 301.056 | H6: 301.056 | I6: 301.056 | J6: 298.752 | K6: 296.448 | L6: 294.144 | M6: =M5*1000 -> 301.056 | N6: 301.056 | O6: =O5*1000 -> 301.056 | P6: =P5*1000 -> 301.056 | Q6: 301.056 | S6: =S5*1000 -> 301.056 | T6: =T5*1000 -> 301.056 | U6: =U5*1000 -> 301.056 | V6: 301.056 | W6: 301.056 | X6: 298.752 | Y6: 298.752 | Z6: 296.448
B7: Volume separator [m3] | D7: =(D16-2*D22)*(D17-2*D22)*D22 -> 0.012672 | F7: =(F16-2*F22)*(F17-2*F22)*F22 -> 0.012672 | G7: 0.012672 | H7: 0.012672 | I7: 0.012672 | J7: 0.014976 | K7: 0.01728 | L7: 0.019584 | M7: =(M16-2*M22)*(M17-2*M22)*M22 -> 0.012672 | N7: 0.012672 | O7: =(O16-2*O22)*(O17-2*O22)*O22 -> 0.012672 | P7: =(P16-2*P22)*(P17-2*P22)*P22 -> 0.012672 | Q7: 0.012672 | S7: =(S16-2*S22)*(S17-2*S22)*S22 -> 0.012672 | T7: =(T16-2*T22)*(T17-2*T22)*T22 -> 0.012672 | U7: =(U16-2*U22)*(U17-2*U22)*U22 -> 0.012672 | V7: 0.012672 | W7: 0.012672 | X7: 0.014976 | Y7: 0.014976 | Z7: 0.01728
B8: Volume fresh food [m3] | D8: =(D16-2*D22)*(D17-2*D22)*(D18-D22-D19)-0.5*D7 -> 0.21977088 | F8: =(F16-2*F22)*(F17-2*F22)*(F18-F22-F19)-0.5*F7 -> 0.21977088 | G8: 0.21977088 | H8: 0.21977088 | I8: 0.21977088 | J8: 0.21808896 | K8: 0.21640704 | L8: 0.21472512 | M8: =(M16-2*M22)*(M17-2*M22)*(M18-M22-M19)-0.5*M7 -> 0.21977088 | N8: 0.21977088 | O8: =(O16-2*O22)*(O17-2*O22)*(O18-O22-O19)-0.5*O7 -> 0.21977088 | P8: =(P16-2*P22)*(P17-2*P22)*(P18-P22-P19)-0.5*P7 -> 0.21977088 | Q8: 0.21977088 | S8: =(S16-2*S22)*(S17-2*S22)*(S18-S22-S19)-0.5*S7 -> 0.21977088 | T8: =(T16-2*T22)*(T17-2*T22)*(T18-T22-T19)-0.5*T7 -> 0.21977088 | U8: =(U16-2*U22)*(U17-2*U22)*(U18-U22-U19)-0.5*U7 -> 0.21977088 | V8: 0.21977088 | W8: 0.21977088 | X8: 0.21808896 | Y8: 0.21808896 | Z8: 0.21640704
B9: Volume frozen food [m3] | D9: =(D16-2*D22)*(D17-2*D22)*(D19-D20-D22)-D21^2*(D16-2*D22)-D7*0.5 -> 0.08128512 | F9: =(F16-2*F22)*(F17-2*F22)*(F19-F20-F22)-F21^2*(F16-2*F22)-F7*0.5 -> 0.08128512 | G9: 0.08128512 | H9: 0.08128512 | I9: 0.08128512 | J9: 0.08066304 | K9: 0.08004096 | L9: 0.07941888 | M9: =(M16-2*M22)*(M17-2*M22)*(M19-M20-M22)-M21^2*(M16-2*M22)-M7*0.5 -> 0.08128512 | N9: 0.08128512 | O9: =(O16-2*O22)*(O17-2*O22)*(O19-O20-O22)-O21^2*(O16-2*O22)-O7*0.5 -> 0.08128512 | P9: =(P16-2*P22)*(P17-2*P22)*(P19-P20-P22)-P21^2*(P16-2*P22)-P7*0.5 -> 0.08128512 | Q9: 0.08128512 | S9: =(S16-2*S22)*(S17-2*S22)*(S19-S20-S22)-S21^2*(S16-2*S22)-S7*0.5 -> 0.08128512 | T9: =(T16-2*T22)*(T17-2*T22)*(T19-T20-T22)-T21^2*(T16-2*T22)-T7*0.5 -> 0.08128512 | U9: =(U16-2*U22)*(U17-2*U22)*(U19-U20-U22)-U21^2*(U16-2*U22)-U7*0.5 -> 0.08128512 | V9: 0.08128512 | W9: 0.08128512 | X9: 0.08066304 | Y9: 0.08066304 | Z9: 0.08004096
B10: Ratio fresh/total [-] | D10: =D8/D5 -> 0.73 | F10: =F8/F5 -> 0.73 | G10: 0.73 | H10: 0.73 | I10: 0.73 | J10: 0.73 | K10: 0.73 | L10: 0.73 | M10: =M8/M5 -> 0.73 | N10: 0.73 | O10: =O8/O5 -> 0.73 | P10: =P8/P5 -> 0.73 | Q10: 0.73 | S10: =S8/S5 -> 0.73 | T10: =T8/T5 -> 0.73 | U10: =U8/U5 -> 0.73 | V10: 0.73 | W10: 0.73 | X10: 0.73 | Y10: 0.73 | Z10: 0.73
A11: A | B11: Refrigerated envelope surface [m2] | C11: 3.679 | D11: =2*((D16-D22)*(D17-D22)+(D18-D22-D20)*(D17-D22)-(D21)^2+(D16-D22)*(D18-D22-D20)) -> 3.70245 | F11: =2*((F16-F22)*(F17-F22)+(F18-F22-F20)*(F17-F22)-(F21)^2+(F16-F22)*(F18-F22-F20)) -> 3.70245 | G11: 3.70245 | H11: 3.70245 | I11: 3.70245 | J11: 3.80585 | K11: 3.91045 | L11: 4.01625 | M11: =2*((M16-M22)*(M17-M22)+(M18-M22-M20)*(M17-M22)-(M21)^2+(M16-M22)*(M18-M22-M20)) -> 3.70245 | N11: 3.70245 | O11: =2*((O16-O22)*(O17-O22)+(O18-O22-O20)*(O17-O22)-(O21)^2+(O16-O22)*(O18-O22-O20)) -> 3.70245 | P11: =2*((P16-P22)*(P17-P22)+(P18-P22-P20)*(P17-P22)-(P21)^2+(P16-P22)*(P18-P22-P20)) -> 3.70245 | Q11: 3.70245 | S11: =2*((S16-S22)*(S17-S22)+(S18-S22-S20)*(S17-S22)-(S21)^2+(S16-S22)*(S18-S22-S20)) -> 3.70245 | T11: =2*((T16-T22)*(T17-T22)+(T18-T22-T20)*(T17-T22)-(T21)^2+(T16-T22)*(T18-T22-T20)) -> 3.70245 | U11: =2*((U16-U22)*(U17-U22)+(U18-U22-U20)*(U17-U22)-(U21)^2+(U16-U22)*(U18-U22-U20)) -> 3.70245 | V11: 3.70245 | W11: 3.70245 | X11: 3.80585 | Y11: 3.80585 | Z11: 3.91045
B12: Area fresh food [m2] | D12: =((D16-D22)*(D17-D22)+2*((D18-0.5*D22-D19)*(D17-D22))+2*(D16-D22)*(D18-0.5*D22-D19)) -> 2.445199667 | F12: =((F16-F22)*(F17-F22)+2*((F18-0.5*F22-F19)*(F17-F22))+2*(F16-F22)*(F18-0.5*F22-F19)) -> 2.445199667 | G12: 2.445199667 | H12: 2.445199667 | I12: 2.445199667 | J12: 2.502240333 | K12: 2.559697 | L12: 2.617569667 | M12: =((M16-M22)*(M17-M22)+2*((M18-0.5*M22-M19)*(M17-M22))+2*(M16-M22)*(M18-0.5*M22-M19)) -> 2.445199667 | N12: 2.445199667 | O12: =((O16-O22)*(O17-O22)+2*((O18-0.5*O22-O19)*(O17-O22))+2*(O16-O22)*(O18-0.5*O22-O19)) -> 2.445199667 | P12: =((P16-P22)*(P17-P22)+2*((P18-0.5*P22-P19)*(P17-P22))+2*(P16-P22)*(P18-0.5*P22-P19)) -> 2.445199667 | Q12: 2.445199667 | S12: =((S16-S22)*(S17-S22)+2*((S18-0.5*S22-S19)*(S17-S22))+2*(S16-S22)*(S18-0.5*S22-S19)) -> 2.445199667 | T12: =((T16-T22)*(T17-T22)+2*((T18-0.5*T22-T19)*(T17-T22))+2*(T16-T22)*(T18-0.5*T22-T19)) -> 2.445199667 | U12: =((U16-U22)*(U17-U22)+2*((U18-0.5*U22-U19)*(U17-U22))+2*(U16-U22)*(U18-0.5*U22-U19)) -> 2.445199667 | V12: 2.445199667 | W12: 2.445199667 | X12: 2.502240333 | Y12: 2.502240333 | Z12: 2.559697
B13: Area frozen food [m2] | D13: =(D16-D22)*(D17-D22)+2*((D19-0.5*D22-D20)*(D17-D22)-(D21)^2)+2*(D16-D22)*(D19-0.5*D22-D20) -> 1.257250333 | F13: =(F16-F22)*(F17-F22)+2*((F19-0.5*F22-F20)*(F17-F22)-(F21)^2)+2*(F16-F22)*(F19-0.5*F22-F20) -> 1.257250333 | G13: 1.257250333 | H13: 1.257250333 | I13: 1.257250333 | J13: 1.303609667 | K13: 1.350753 | L13: 1.398680333 | M13: =(M16-M22)*(M17-M22)+2*((M19-0.5*M22-M20)*(M17-M22)-(M21)^2)+2*(M16-M22)*(M19-0.5*M22-M20) -> 1.257250333 | N13: 1.257250333 | O13: =(O16-O22)*(O17-O22)+2*((O19-0.5*O22-O20)*(O17-O22)-(O21)^2)+2*(O16-O22)*(O19-0.5*O22-O20) -> 1.257250333 | P13: =(P16-P22)*(P17-P22)+2*((P19-0.5*P22-P20)*(P17-P22)-(P21)^2)+2*(P16-P22)*(P19-0.5*P22-P20) -> 1.257250333 | Q13: 1.257250333 | S13: =(S16-S22)*(S17-S22)+2*((S19-0.5*S22-S20)*(S17-S22)-(S21)^2)+2*(S16-S22)*(S19-0.5*S22-S20) -> 1.257250333 | T13: =(T16-T22)*(T17-T22)+2*((T19-0.5*T22-T20)*(T17-T22)-(T21)^2)+2*(T16-T22)*(T19-0.5*T22-T20) -> 1.257250333 | U13: =(U16-U22)*(U17-U22)+2*((U19-0.5*U22-U20)*(U17-U22)-(U21)^2)+2*(U16-U22)*(U19-0.5*U22-U20) -> 1.257250333 | V13: 1.257250333 | W13: 1.257250333 | X13: 1.303609667 | Y13: 1.303609667 | Z13: 1.350753
A14: Acd | B14: Condenser Area [m2] | C14: =C16*(C18-C20-C21) -> 0.79945 | D14: =D16*(D18-D20-D21) -> 0.79945 | F14: =F16*(F18-F20-F21) -> 0.79945 | G14: 0.79945 | H14: 0.79945 | I14: 0.79945 | J14: 0.83875 | K14: 0.87885 | L14: 0.91975 | M14: =M16*(M18-M20-M21) -> 0.79945 | N14: 0.79945 | O14: =O16*(O18-O20-O21) -> 0.79945 | P14: =P16*(P18-P20-P21) -> 0.79945 | Q14: 0.79945 | S14: =S16*(S18-S20-S21) -> 0.79945 | T14: =T16*(T18-T20-T21) -> 0.79945 | U14: =U16*(U18-U20-U21) -> 0.79945 | V14: 0.79945 | W14: 0.79945 | X14: 0.83875 | Y14: 0.83875 | Z14: 0.87885
A15: Ldr | B15: Door perimeter length [m] | C15: =2*(C16+(C18-C20))+2*C16 -> 5.47 | D15: =2*(D16+(D18-D20))+2*D16 -> 5.47 | F15: =2*(F16+(F18-F20))+2*F16 -> 5.47 | G15: 5.47 | H15: 5.47 | I15: 5.47 | J15: 5.59 | K15: 5.71 | L15: 5.83 | M15: =2*(M16+(M18-M20))+2*M16 -> 5.47 | N15: 5.47 | O15: =2*(O16+(O18-O20))+2*O16 -> 5.47 | P15: =2*(P16+(P18-P20))+2*P16 -> 5.47 | Q15: 5.47 | S15: =2*(S16+(S18-S20))+2*S16 -> 5.47 | T15: =2*(T16+(T18-T20))+2*T16 -> 5.47 | U15: =2*(U16+(U18-U20))+2*U16 -> 5.47 | V15: 5.47 | W15: 5.47 | X15: 5.59 | Y15: 5.59 | Z15: 5.71
A16: w | B16: width [m] | C16: 0.59 | D16: 0.59 | F16: 0.59 | G16: 0.59 | H16: 0.59 | I16: 0.59 | J16: 0.61 | K16: 0.63 | L16: 0.65 | M16: 0.59 | N16: 0.59 | O16: 0.59 | P16: 0.59 | Q16: 0.59 | S16: 0.59 | T16: 0.59 | U16: 0.59 | V16: 0.59 | W16: 0.59 | X16: 0.61 | Y16: 0.61 | Z16: 0.63
A17: d | B17: depth [m] | C17: 0.59 | D17: 0.59 | F17: 0.59 | G17: 0.59 | H17: 0.59 | I17: 0.59 | J17: 0.61 | K17: 0.63 | L17: 0.65 | M17: 0.59 | N17: 0.59 | O17: 0.59 | P17: 0.59 | Q17: 0.59 | S17: 0.59 | T17: 0.59 | U17: 0.59 | V17: 0.59 | W17: 0.59 | X17: 0.61 | Y17: 0.61 | Z17: 0.63
A18: h | B18: height [m] | C18: 1.605 | D18: 1.605 | F18: 1.605 | G18: 1.605 | H18: 1.605 | I18: 1.605 | J18: 1.625 | K18: 1.645 | L18: 1.665 | M18: 1.605 | N18: 1.605 | O18: 1.605 | P18: 1.605 | Q18: 1.605 | S18: 1.605 | T18: 1.605 | U18: 1.605 | V18: 1.605 | W18: 1.605 | X18: 1.625 | Y18: 1.625 | Z18: 1.645
A19: hs | B19: height level separator (mid position) [m] | D19: 0.5686333333 | F19: 0.5686333333 | G19: 0.5686333333 | H19: 0.5686333333 | I19: 0.5686333333 | J19: 0.5809333333 | K19: 0.5932333333 | L19: 0.6055333333 | M19: 0.5686333333 | N19: 0.5686333333 | O19: 0.5686333333 | P19: 0.5686333333 | Q19: 0.5686333333 | S19: 0.5686333333 | T19: 0.5686333333 | U19: 0.5686333333 | V19: 0.5686333333 | W19: 0.5686333333 | X19: 0.5809333333 | Y19: 0.5809333333 | Z19: 0.5932333333
A20: a | B20: air passage height below unit [m] | C20: 0.05 | D20: 0.05 | F20: 0.05 | G20: 0.05 | H20: 0.05 | I20: 0.05 | J20: 0.05 | K20: 0.05 | L20: 0.05 | M20: 0.05 | N20: 0.05 | O20: 0.05 | P20: 0.05 | Q20: 0.05 | S20: 0.05 | T20: 0.05 | U20: 0.05 | V20: 0.05 | W20: 0.05 | X20: 0.05 | Y20: 0.05 | Z20: 0.05
A21: b | B21: height and depth compressor area [m] | C21: 0.2 | D21: 0.2 | F21: 0.2 | G21: 0.2 | H21: 0.2 | I21: 0.2 | J21: 0.2 | K21: 0.2 | L21: 0.2 | M21: 0.2 | N21: 0.2 | O21: 0.2 | P21: 0.2 | Q21: 0.2 | S21: 0.2 | T21: 0.2 | U21: 0.2 | V21: 0.2 | W21: 0.2 | X21: 0.2 | Y21: 0.2 | Z21: 0.2
A22: t | B22: average wall thickness [m] | C22: 0.055 | D22: 0.055 | F22: 0.055 | G22: 0.055 | H22: 0.055 | I22: 0.055 | J22: 0.065 | K22: 0.075 | L22: 0.085 | M22: 0.055 | N22: 0.055 | O22: 0.055 | P22: 0.055 | Q22: 0.055 | S22: 0.055 | T22: 0.055 | U22: 0.055 | V22: 0.055 | W22: 0.055 | X22: 0.065 | Y22: 0.065 | Z22: 0.075
A23: t | B23: average wall thickness from data base [m] | C23: =(8.477*C5+3.0361)/100 -> 0.05550852912 | D23: =(8.477*D5+3.0361)/100 -> 0.05588151712 | F23: =(8.477*F5+3.0361)/100 -> 0.05588151712 | G23: 0.05588151712 | H23: 0.05588151712 | I23: 0.05588151712 | J23: 0.05568620704 | K23: 0.05549089696 | L23: 0.05529558688 | M23: =(8.477*M5+3.0361)/100 -> 0.05588151712 | N23: 0.05588151712 | O23: =(8.477*O5+3.0361)/100 -> 0.05588151712 | P23: =(8.477*P5+3.0361)/100 -> 0.05588151712 | Q23: 0.05588151712 | S23: =(8.477*S5+3.0361)/100 -> 0.05588151712 | T23: =(8.477*T5+3.0361)/100 -> 0.05588151712 | U23: =(8.477*U5+3.0361)/100 -> 0.05588151712 | V23: 0.05588151712 | W23: 0.05588151712 | X23: 0.05568620704 | Y23: 0.05568620704 | Z23: 0.05549089696
B24: wall thickness fresh food [m] | D24: =$J$1*D22 -> 0.0462 | F24: =$J$1*F22 -> 0.0462 | G24: 0.0462 | H24: 0.0462 | I24: 0.0462 | J24: 0.0546 | K24: 0.063 | L24: 0.0714 | M24: =$J$1*M22 -> 0.0462 | N24: 0.0462 | O24: =$J$1*O22 -> 0.0462 | P24: =$J$1*P22 -> 0.0462 | Q24: 0.0462 | S24: =$J$1*S22 -> 0.0462 | T24: =$J$1*T22 -> 0.0462 | U24: =$J$1*U22 -> 0.0462 | V24: 0.0462 | W24: 0.0462 | X24: 0.0546 | Y24: 0.0546 | Z24: 0.063
B25: wall thickness frozen food [m] | D25: =(D11*D22-D12*D24)/D13 -> 0.07211493447 | F25: =(F11*F22-F12*F24)/F13 -> 0.07211493447 | G25: 0.07211493447 | H25: 0.07211493447 | I25: 0.07211493447 | J25: 0.08496249348 | K25: 0.09774017826 | L25: 0.110451811 | M25: =(M11*M22-M12*M24)/M13 -> 0.07211493447 | N25: 0.07211493447 | O25: =(O11*O22-O12*O24)/O13 -> 0.07211493447 | P25: =(P11*P22-P12*P24)/P13 -> 0.07211493447 | Q25: 0.07211493447 | S25: =(S11*S22-S12*S24)/S13 -> 0.07211493447 | T25: =(T11*T22-T12*T24)/T13 -> 0.07211493447 | U25: =(U11*U22-U12*U24)/U13 -> 0.07211493447 | V25: 0.07211493447 | W25: 0.07211493447 | X25: 0.08496249348 | Y25: 0.08496249348 | Z25: 0.09774017826
A26: Tc | B26: compartment temperature [C] | C26: =$D$1*4+(1-$D$1)*(-20) -> -2.48 | D26: =D29-D32/(D31*D11) -> -2.378665603 | F26: =F29-F32/(F31*F11) -> -2.378665603 | G26: -2.378665603 | H26: -2.378665603 | I26: -2.378665603 | J26: -2.446290067 | K26: -2.512717228 | L26: -2.577981537 | M26: =M29-M32/(M31*M11) -> -2.355969831 | N26: -2.378665603 | O26: =O29-O32/(O31*O11) -> -2.378665603 | P26: =P29-P32/(P31*P11) -> -2.378665603 | Q26: -2.378665603 | S26: =S29-S32/(S31*S11) -> -2.378665603 | T26: =T29-T32/(T31*T11) -> -2.378665603 | U26: =U29-U32/(U31*U11) -> -2.378665603 | V26: -2.378665603 | W26: -2.378665603 | X26: -2.446290067 | Y26: -2.446290067 | Z26: -2.512717228
D27: 5 | F27: 5 | G27: 5 | H27: 5 | I27: 5 | J27: 5 | K27: 5 | L27: 5 | M27: 5 | N27: 5 | O27: 5 | P27: 5 | Q27: 5 | S27: 5 | T27: 5 | U27: 5 | V27: 5 | W27: 5 | X27: 5 | Y27: 5 | Z27: 5
D28: -20 | F28: -20 | G28: -20 | H28: -20 | I28: -20 | J28: -20 | K28: -20 | L28: -20 | M28: -20 | N28: -20 | O28: -20 | P28: -20 | Q28: -20 | S28: -20 | T28: -20 | U28: -20 | V28: -20 | W28: -20 | X28: -20 | Y28: -20 | Z28: -20
A29: Ta | B29: ambient temperature [C] | C29: 25 | D29: 25 | F29: 25 | G29: 25 | H29: 25 | I29: 25 | J29: 25 | K29: 25 | L29: 25 | M29: 25 | N29: 25 | O29: 25 | P29: 25 | Q29: 25 | S29: 25 | T29: 25 | U29: 25 | V29: 25 | W29: 25 | X29: 25 | Y29: 25 | Z29: 25
A30: k | B30: heat conductivity wall [W/m/K] | C30: 0.02 | D30: 0.02 | F30: 0.02 | G30: 0.02 | H30: 0.02 | I30: 0.02 | J30: 0.02 | K30: 0.02 | L30: 0.02 | M30: 0.02 | N30: 0.02 | O30: 0.02 | P30: 0.02 | Q30: 0.02 | S30: 0.02 | T30: 0.02 | U30: 0.02 | V30: 0.02 | W30: 0.02 | X30: 0.02 | Y30: 0.02 | Z30: 0.02
A31: U wall | B31: heat transfer coefficient [W/m2/K] | C31: =C30/C22 -> 0.3636363636 | D31: =D30/D22 -> 0.3636363636 | F31: =F30/F22 -> 0.3636363636 | G31: 0.3636363636 | H31: 0.3636363636 | I31: 0.3636363636 | J31: 0.3076923077 | K31: 0.2666666667 | L31: 0.2352941176 | M31: 0.329 | N31: 0.292 | O31: =O30/O22 -> 0.3636363636 | P31: =P30/P22 -> 0.3636363636 | Q31: 0.3636363636 | S31: =S30/S22 -> 0.3636363636 | T31: =T30/T22 -> 0.3636363636 | U31: =U30/U22 -> 0.3636363636 | V31: 0.3636363636 | W31: 0.3636363636 | X31: 0.3076923077 | Y31: 0.3076923077 | Z31: 0.2666666667
A32: Ptrans | B32: transmission heat loss [W] | C32: =C11*C31*(C29-C26) -> 36.76324364 | D32: =D12*D30/D24*(D29-D27)+D13*D30/D25*(D29-D28) -> 36.86114199 | F32: =F12*F30/F24*(F29-F27)+F13*F30/F25*(F29-F28) -> 36.86114199 | G32: 36.86114199 | H32: 36.86114199 | I32: 36.86114199 | J32: 32.14045017 | K32: 28.68989469 | L32: 26.06119255 | M32: =0.904*(M12*M30/M24*(M29-M27)+M13*M30/M25*(M29-M28)) -> 33.32247235 | N32: =0.803*(N12*N30/N24*(N29-N27)+N13*N30/N25*(N29-N28)) -> 29.59949701 | O32: =O12*O30/O24*(O29-O27)+O13*O30/O25*(O29-O28) -> 36.86114199 | P32: =P12*P30/P24*(P29-P27)+P13*P30/P25*(P29-P28) -> 36.86114199 | Q32: 36.86114199 | S32: =S12*S30/S24*(S29-S27)+S13*S30/S25*(S29-S28) -> 36.86114199 | T32: =T12*T30/T24*(T29-T27)+T13*T30/T25*(T29-T28) -> 36.86114199 | U32: =U12*U30/U24*(U29-U27)+U13*U30/U25*(U29-U28) -> 36.86114199 | V32: 36.86114199 | W32: 36.86114199 | X32: 32.14045017 | Y32: 32.14045017 | Z32: 28.68989469
A33: Udoor | B33: heat transfer coeff. door gasket [W/mK] | C33: 0.08 | D33: 0.08 | F33: 0.08 | G33: 0.08 | H33: 0.08 | I33: 0.08 | J33: 0.065 | K33: 0.055 | L33: 0.045 | M33: 0.08 | N33: 0.08 | O33: 0.08 | P33: 0.08 | Q33: 0.08 | S33: 0.08 | T33: 0.08 | U33: 0.08 | V33: 0.08 | W33: 0.08 | X33: 0.065 | Y33: 0.065 | Z33: 0.055
A34: Pdoor | B34: door heat loss [W] | C34: =C33*C15*(C29-C26) -> 12.025248 | D34: =D33*D15*(D29-D26) -> 11.98090407 | F34: =F33*F15*(F29-F26) -> 11.98090407 | G34: 11.98090407 | H34: 11.98090407 | I34: 11.98090407 | J34: 9.972609496 | K34: 8.640368845 | L34: 7.235083456 | M34: =M33*M15*(M29-M26) -> 11.9709724 | N34: 11.98090407 | O34: =O33*O15*(O29-O26) -> 11.98090407 | P34: =P33*P15*(P29-P26) -> 11.98090407 | Q34: 11.98090407 | S34: =S33*S15*(S29-S26) -> 11.98090407 | T34: =T33*T15*(T29-T26) -> 11.98090407 | U34: =U33*U15*(U29-U26) -> 11.98090407 | V34: 11.98090407 | W34: 11.98090407 | X34: 9.972609496 | Y34: 9.972609496 | Z34: 8.640368845
A35: Ploss_tot | B35: total heat power loss (Ptrans+Pdoor) [W] | C35: =C32+C34 -> 48.78849164 | D35: =D32+D34 -> 48.84204605 | F35: =F32+F34 -> 48.84204605 | G35: 48.84204605 | H35: 48.84204605 | I35: 48.84204605 | J35: 42.11305967 | K35: 37.33026353 | L35: 33.29627601 | M35: =M32+M34 -> 45.29344475 | N35: 41.58040108 | O35: =O32+O34 -> 48.84204605 | P35: =P32+P34+2.2*1000/365/24 -> 49.09318761 | Q35: =Q32+Q34 -> 48.84204605 | S35: =S32+S34 -> 48.84204605 | T35: =T32+T34 -> 48.84204605 | U35: =U32+U34 -> 48.84204605 | V35: 48.84204605 | W35: 48.84204605 | X35: 42.11305967 | Y35: 42.11305967 | Z35: 37.33026353
A36: Ploss_tot_spec | B36: specific total heat loss [W/m3] | C36: =C35/C6 -> 0.164461503 | D36: =D35/D6 -> 0.1622357503 | F36: =F35/F6 -> 0.1622357503 | G36: 0.1622357503 | H36: 0.1622357503 | I36: 0.1622357503 | J36: 0.1409632728 | K36: 0.1259251657 | L36: 0.113197196 | M36: =M35/M6 -> 0.1504485702 | N36: 0.1381151715 | O36: =O35/O6 -> 0.1622357503 | P36: =P35/P6 -> 0.1630699525 | Q36: 0.1622357503 | S36: =S35/S6 -> 0.1622357503 | T36: =T35/T6 -> 0.1622357503 | U36: =U35/U6 -> 0.1622357503 | V36: 0.1622357503 | W36: 0.1622357503 | X36: 0.1409632728 | Y36: 0.1409632728 | Z36: 0.1259251657
A37: Eloss_tot | B37: annual heat loss [kWhth/a] | C37: =C35*365*24/1000 -> 427.3871867 | D37: =D35*365*24/1000 -> 427.8563234 | F37: =F35*365*24/1000 -> 427.8563234 | G37: 427.8563234 | H37: 427.8563234 | I37: 427.8563234 | J37: 368.9104027 | K37: 327.0131086 | L37: 291.6753778 | M37: =M35*365*24/1000 -> 396.770576 | N37: 364.2443135 | O37: =O35*365*24/1000 -> 427.8563234 | P37: =P35*365*24/1000 -> 430.0563234 | Q37: 427.8563234 | S37: =S35*365*24/1000 -> 427.8563234 | T37: =T35*365*24/1000 -> 427.8563234 | U37: =U35*365*24/1000 -> 427.8563234 | V37: 427.8563234 | W37: 427.8563234 | X37: 368.9104027 | Y37: 368.9104027 | Z37: 327.0131086
A38: dTev | B38: evaporator temperature difference [K] | C38: =20*$D$1+8*(1-$D$1) -> 16.76
A39: dTcd | B39: condenser temperature difference [K] | C39: =15*$D$1+10*(1-$D$1) -> 13.65 | D39: 11 | F39: 10.7 | G39: 10.5 | H39: 10.3 | I39: 10.7 | J39: 11.3 | K39: 11.7 | L39: 12 | M39: 11.3 | N39: 11.5 | O39: 11 | P39: 11 | Q39: 9 | S39: 11 | T39: 9 | U39: 9 | V39: 8.7 | W39: 8.4 | X39: 8.7 | Y39: 8.3 | Z39: 8.6
A40: Tev | B40: evaporator temperature [C] | C40: =C26-C38 -> -19.24 | D40: -25 | F40: -25 | G40: -25 | H40: -25 | I40: -22 | J40: -25 | K40: -25 | L40: -25 | M40: -25 | N40: -25 | O40: -25 | P40: -23.5 | Q40: -25 | S40: -25 | T40: -25 | U40: -25 | V40: -25 | W40: -25 | X40: -25 | Y40: -25 | Z40: -25
A41: Tcd | B41: condenser temperature [C] | C41: =C29+C39 -> 38.65 | D41: =D29+D39 -> 36 | F41: =F29+F39 -> 35.7 | G41: 35.5 | H41: 35.3 | I41: 35.7 | J41: 36.3 | K41: 36.7 | L41: 37 | M41: =M29+M39 -> 36.3 | N41: 36.5 | O41: =O29+O39 -> 36 | P41: =P29+P39 -> 36 | Q41: 34 | S41: =S29+S39 -> 36 | T41: =T29+T39 -> 34 | U41: =U29+U39 -> 34 | V41: 33.7 | W41: 33.4 | X41: 33.7 | Y41: 33.3 | Z41: 33.6
A42: Pnom | B42: nominal compressor cooling power [W] | C42: 141 | D42: 141 | F42: 141 | G42: 141 | H42: 141 | I42: 70.5 | J42: 141 | K42: 141 | L42: 141 | M42: 141 | N42: 141 | O42: 141 | P42: 141 | Q42: 141 | S42: 141 | T42: 141 | U42: 141 | V42: 141 | W42: 141 | X42: 141 | Y42: 141 | Z42: 141
A43: COPnom | B43: nominal at -23.4/54.4 (subcooling 32.2) [-] | C43: 1.54 | D43: 1.54 | F43: 1.725 | G43: 1.85 | H43: 1.98 | I43: 1.85 | J43: 1.54 | K43: 1.54 | L43: 1.54 | M43: 1.54 | N43: 1.54 | O43: 1.54 | P43: 1.54 | Q43: 1.54 | S43: 1.54 | T43: 1.54 | U43: 1.54 | V43: 1.725 | W43: 1.85 | X43: 1.85 | Y43: 1.98 | Z43: 1.98
A44: Pratio | B44: Ratio Pc/Pcnom | C44: =Pc_c1+Pc_c2*C40+Pc_c3*C41+Pc_c4*C40^2+Pc_c5*C40*C41+Pc_c6*C41^2+Pc_c7*C40^3+Pc_c8*C41*C40^2+Pc_c9*C40*C41^2+Pc_c10*C41^3 -> 1.308018694 | D44: =Pc_c1+Pc_c2*D40+Pc_c3*D41+Pc_c4*D40^2+Pc_c5*D40*D41+Pc_c6*D41^2+Pc_c7*D40^3+Pc_c8*D41*D40^2+Pc_c9*D40*D41^2+Pc_c10*D41^3 -> 0.9989078769 | F44: =Pc_c1+Pc_c2*F40+Pc_c3*F41+Pc_c4*F40^2+Pc_c5*F40*F41+Pc_c6*F41^2+Pc_c7*F40^3+Pc_c8*F41*F40^2+Pc_c9*F40*F41^2+Pc_c10*F41^3 -> 1.002662075 | G44: 1.005164121 | H44: 1.00766557 | I44: 1.17563647 | J44: 0.995152308 | K44: 0.9901427224 | L44: 0.9863838912 | M44: 0.995152308 | N44: 0.9926478259 | O44: 0.9989078769 | P44: 1.082941792 | Q44: 1.023910785 | S44: =Pc_c1+Pc_c2*S40+Pc_c3*S41+Pc_c4*S40^2+Pc_c5*S40*S41+Pc_c6*S41^2+Pc_c7*S40^3+Pc_c8*S41*S40^2+Pc_c9*S40*S41^2+Pc_c10*S41^3 -> 0.9989078769 | T44: 1.023910785 | U44: 1.023910785 | V44: 1.027656272 | W44: 1.031400517 | X44: 1.027656272 | Y44: 1.032648326 | Z44: 1.028904491
A45: P | B45: Cooling power | C45: =C42*C44 -> 184.4306359 | D45: =D42*D44 -> 140.8460106 | F45: =F42*F44 -> 141.3753526 | G45: 141.7281411 | H45: 142.0808454 | I45: 82.88237111 | J45: 140.3164754 | K45: 139.6101239 | L45: 139.0801287 | M45: =M42*M44 -> 140.3164754 | N45: 139.9633435 | O45: =O42*O44 -> 140.8460106 | P45: =P42*P44 -> 152.6947927 | Q45: 144.3714206 | S45: =S42*S44 -> 140.8460106 | T45: =T42*T44 -> 144.3714206 | U45: =U42*U44 -> 144.3714206 | V45: 144.8995344 | W45: 145.4274729 | X45: 144.8995344 | Y45: 145.6034139 | Z45: 145.0755333
A46: Load factor | B46: Ratio of heat load to cooling power | C46: =C35/C45 -> 0.2645357231 | D46: =D35/D45 -> 0.3467762121 | F46: =F35/F45 -> 0.3454778018 | G46: 0.3446178414 | H46: 0.3437623552 | I46: 0.5892935422 | J46: 0.3001291155 | K46: 0.2673893734 | L46: 0.2394035462 | M46: =M35/M45 -> 0.3227949149 | N46: 0.2970806502 | O46: =O35/O45 -> 0.3467762121 | P46: =P35/P45 -> 0.3215118651 | Q46: 0.3383082735 | S46: =S35/S45 -> 0.3467762121 | T46: =T35/T45 -> 0.3383082735 | U46: =U35/U45 -> 0.3383082735 | V46: 0.337075245 | W46: 0.3358515765 | X46: 0.2906362663 | Y46: 0.2892312655 | Z46: 0.2573160525
A47: Cycling losses | B47: Part load losses (in % COP) | C47: =0.125*(1-C35/((235+121)/2)) -> 0.09073841879 | D47: =0.125*(1-D35/D45) -> 0.08165297349 | F47: =0.125*(1-F35/F45) -> 0.08181527478 | G47: 0.08192276982 | H47: 0.0820297056 | I47: 0.05133830723 | J47: 0.08748386056 | K47: 0.09157632833 | L47: 0.09507455672 | M47: =0.125*(1-M35/M45) -> 0.08465063563 | N47: 0.08786491872 | O47: =0.125*(1-O35/O45)*0.5 -> 0.04082648675 | P47: =0.125*(1-P35/P45) -> 0.08481101686 | Q47: 0.08271146581 | S47: =0.125*(1-S35/S45) -> 0.08165297349 | T47: =0.125*(1-T35/T45) -> 0.08271146581 | U47: =0.125*(1-U35/U45)*0.5 -> 0.04135573291 | V47: =0.125*(1-V35/V45)*0.5 -> 0.04143279719 | W47: 0.04150927647 | X47: =0.125*(1-X35/X45)*0.5 -> 0.04433523336 | Y47: 0.04442304591 | Z47: 0.04641774672
A48: COP ratio | B48: Ratio COP/ COPnom | C48: =COP_c1+COP_c2*C40+COP_c3*C41+COP_c4*C40^2+COP_c5*C40*C41+COP_c6*C41^2+COP_c7*C40^3+COP_c8*C41*C40^2+COP_c9*C40*C41^2+COP_c10*C41^3 -> 1.292502011 | D48: =COP_c1+COP_c2*D40+COP_c3*D41+COP_c4*D40^2+COP_c5*D40*D41+COP_c6*D41^2+COP_c7*D40^3+COP_c8*D41*D40^2+COP_c9*D40*D41^2+COP_c10*D41^3 -> 1.187510209 | F48: =COP_c1+COP_c2*F40+COP_c3*F41+COP_c4*F40^2+COP_c5*F40*F41+COP_c6*F41^2+COP_c7*F40^3+COP_c8*F41*F40^2+COP_c9*F40*F41^2+COP_c10*F41^3 -> 1.195001664 | G48: 1.200037865 | H48: 1.205108238 | I48: 1.286394945 | J48: 1.180092481 | K48: 1.170313586 | L48: 1.163060512 | M48: 1.180092481 | N48: 1.175187353 | O48: 1.187510209 | P48: 1.232077615 | Q48: 1.238937469 | S48: =COP_c1+COP_c2*S40+COP_c3*S41+COP_c4*S40^2+COP_c5*S40*S41+COP_c6*S41^2+COP_c7*S40^3+COP_c8*S41*S40^2+COP_c9*S40*S41^2+COP_c10*S41^3 -> 1.187510209 | T48: 1.238937469 | U48: 1.238937469 | V48: 1.246968931 | W48: 1.255088667 | X48: 1.246968931 | Y48: 1.25781519 | Z48: 1.249665607
A49: COP | B49: COP at actual Tev and Tcd | C49: 2.06 | D49: =D48*D43 -> 1.828765721 | F49: =F48*F43 -> 2.061377871 | G49: 2.220070049 | H49: 2.386114312 | I49: 2.379830649 | J49: 1.817342421 | K49: 1.802282923 | L49: 1.791113188 | M49: =M48*M43 -> 1.817342421 | N49: 1.809788523 | O49: =O48*O43 -> 1.828765721 | P49: =P48*P43 -> 1.897399527 | Q49: 1.907963702 | S49: =S48*S43 -> 1.828765721 | T49: =T48*T43 -> 1.907963702 | U49: =U48*U43 -> 1.907963702 | V49: 2.151021405 | W49: 2.321914033 | X49: 2.306892522 | Y49: 2.490474076 | Z49: 2.474337903
A50: COP cyc | B50: avg COP at actual Tev and Tcd | C50: =C49*(1-C47) -> 1.873078857 | D50: =D49*(1-D47) -> 1.679441563 | F50: =F49*(1-F47) -> 1.892725674 | G50: 2.038195762 | H50: 2.190382057 | I50: 2.257654172 | J50: 1.65835429 | K50: 1.63723647 | L50: 1.620823896 | M50: =M49*(1-M47) -> 1.66350323 | N50: 1.650771601 | O50: =O49*(1-O47) -> 1.754103642 | P50: =P49*(1-P47) -> 1.736479144 | Q50: 1.750153227 | S50: =S49*(1-S47) -> 1.679441563 | T50: =T49*(1-T47) -> 1.750153227 | U50: =U49*(1-U47) -> 1.829058465 | V50: 2.061898572 | W50: 2.225533062 | X50: 2.204615903 | Y50: 2.379839632 | Z50: 2.359484713
A51: Eaux | B51: electricity CPU and possible fan [kWh/a] | C51: 8.8 | D51: 8.8 | F51: 8.8 | G51: 8.8 | H51: 8.8 | I51: 13.1 | J51: 8.8 | K51: 8.8 | L51: 8.8 | M51: 8.8 | N51: 8.8 | O51: 8.8 | P51: 11 | Q51: 10.7 | S51: 8.8 | T51: 10.7 | U51: 10.7 | V51: 10.7 | W51: 10.7 | X51: 10.7 | Y51: 10.7 | Z51: 10.7
A52: Eaux | B52: electricity CPU and possible fan [W] | C52: =C51*1000/(365*25) -> 0.9643835616 | D52: =D51*1000/(365*25) -> 0.9643835616 | F52: =F51*1000/(365*25) -> 0.9643835616 | G52: 0.9643835616 | H52: 0.9643835616 | I52: 1.435616438 | J52: 0.9643835616 | K52: 0.9643835616 | L52: 0.9643835616 | M52: =M51*1000/(365*25) -> 0.9643835616 | N52: 0.9643835616 | O52: =O51*1000/(365*25) -> 0.9643835616 | P52: =P51*1000/(365*25) -> 1.205479452 | Q52: 1.17260274 | S52: =S51*1000/(365*25) -> 0.9643835616 | T52: =T51*1000/(365*25) -> 1.17260274 | U52: =U51*1000/(365*25) -> 1.17260274 | V52: 1.17260274 | W52: 1.17260274 | X52: 1.17260274 | Y52: 1.17260274 | Z52: 1.17260274
A53: AE | B53: annual electricity consumption [kWh/a] | C53: =C37/C50+C51 -> 236.9736218 | D53: =D37/D50+D51 -> 263.5610664 | F53: =F37/F50+F51 -> 234.8530035 | G53: 218.7191508 | H53: 204.1341071 | I53: 202.6136681 | J53: 231.255723 | K53: 208.5348059 | L53: 188.7550084 | M53: =M37/M50+M51 -> 247.315062 | N53: 229.4509448 | O53: =O37/O50+O51 -> 252.7173565 | P53: =P37/P50+P51 -> 258.6599417 | Q53: 255.1679224 | S53: =S37/S50+S51 -> 263.5610664 | T53: =T37/T50+T51 -> 255.1679224 | U53: =U37/U50+U51 -> 244.6216223 | V53: 218.2059992 | W53: 202.9489181 | X53: 178.0354538 | Y53: 165.714816 | Z53: 149.2951377
A54: SAE | B54: standard annual electricity consumption [kWh/a] | C54: =C6*$G$1*M_Cold7+N_Cold7 -> 605.0724936 | D54: =D6*$G$1*M_Cold7+N_Cold7 -> 609.552831 | F54: =F6*$G$1*M_Cold7+N_Cold7 -> 609.552831 | G54: 609.552831 | H54: 609.552831 | I54: 609.552831 | J54: 607.2067634 | K54: 604.8606958 | L54: 602.5146282 | M54: 609.552831 | N54: 609.552831 | O54: 609.552831 | P54: 609.552831 | Q54: 609.552831 | S54: =S6*$G$1*M_Cold7+N_Cold7 -> 609.552831 | T54: 609.552831 | U54: 609.552831 | V54: 609.552831 | W54: 609.552831 | X54: 607.2067634 | Y54: 607.2067634 | Z54: 604.8606958
A55: EEI | B55: energy efficiency index [-] | C55: =C53/C54 -> 0.3916450083 | D55: =D53/D54 -> 0.4323842873 | F55: =F53/F54 -> 0.3852873641 | G55: 0.3588190222 | H55: 0.3348915742 | I55: 0.3323972227 | J55: 0.3808516917 | K55: 0.3447650134 | L55: 0.3132787149 | M55: =M53/M54 -> 0.4057319553 | N55: 0.3764250334 | O55: =O53/O54 -> 0.4145946728 | P55: =P53/P54 -> 0.4243437624 | Q55: 0.4186149411 | S55: =S53/S54 -> 0.4323842873 | T55: =T53/T54 -> 0.4186149411 | U55: =U53/U54 -> 0.4013132413 | V55: 0.357977173 | W55: 0.3329472161 | X55: 0.2932040032 | Y55: 0.2729133238 | Z55: 0.2468256554
A56: q-model | B56: Model at Ta=25 C [kWh/dm3] | C56: =C53/C6 -> 0.7988162106 | D56: =D53/D6 -> 0.8754552854 | F56: =F53/F6 -> 0.7800974023 | G56: 0.726506533 | H56: 0.6780602517 | I56: 0.6730098988 | J56: 0.7740725519 | K56: 0.7034448061 | L56: 0.6417095315 | M56: =M53/M6 -> 0.8214918885 | N56: 0.7621537016 | O56: =O53/O6 -> 0.8394363724 | P56: =P53/P6 -> 0.8591755078 | Q56: 0.8475762729 | S56: =S53/S6 -> 0.8754552854 | T56: =T53/T6 -> 0.8475762729 | U56: =U53/U6 -> 0.8125452485 | V56: 0.7248020276 | W56: 0.6741234792 | X56: 0.5959305839 | Y56: 0.5546902315 | Z56: 0.5036132396
B58: Consumption compared to base case | F58: =(F53-$D53)/$D53 -> -0.1089237619 | G58: -0.1701386181 | H58: -0.2254770027 | I58: -0.2312458328 | J58: -0.1225725173 | K58: -0.2087799282 | L58: -0.2838281807 | M58: =(M53-$D53)/$D53 -> -0.06164038047 | N58: -0.1294201837 | O58: =(O53-$D53)/$D53 -> -0.04114306421 | P58: -0.01859578423 | Q58: -0.03184515871 | T58: =(T53-$D53)/$D53 -> -0.03184515871 | U58: =(U53-$S53)/$S53 -> -0.07185979447 | V58: -0.1720856111 | W58: -0.2299738314 | X58: =(X53-$S53)/$S53 -> -0.3245001766 | Y58: -0.3712469816 | Z58: -0.4335463136
A60: U cond | B60: Check on condenser heat transfer [W/m2/K] | C60: =(C45+C45/C50)/(2*C14)/C39 -> 12.96195753 | D60: =(D45+D45/D50)/(2*D14)/D39 -> 12.77644282 | F60: =(F45+F45/F50)/(2*F14)/F39 -> 12.62955934 | G60: 12.58390262 | H60: 12.56608017 | I60: 6.990442177 | J60: 11.86596975 | K60: 10.93513026 | L60: 10.1879324 | M60: 12.4347913 | N60: 12.22307526 | O60: 12.5734828 | P60: 13.6814715 | Q60: 15.76515469 | S60: =(S45+S45/S50)/(2*S14)/S39 -> 12.77644282 | T60: 15.76515469 | U60: 15.51785727 | V60: 15.46856182 | W60: 15.69326529 | X60: 14.43205769 | Y60: 14.85180841 | Z60: 13.66490048
B62: Price increase (in terms of final sales price) | F62: 20.72 | G62: 34.75 | H62: 49.35 | I62: 135.04 | J62: 30.64 | K62: 63.56 | L62: 98.19 | M62: 28.63 | N62: 76.02 | O62: 7.64 | P62: 15.6 | Q62: 5.21 | T62: =INDEX($F62:$Q62,MATCH(T3,$F3:$Q3,0)) -> 5.21 | U62: 7.64 | V62: 20.72 | W62: 34.75 | X62: 30.64 | Y62: 49.35 | Z62: 63.56
B63: Price [EUR] | C63: 569 | D63: 569 | F63: =$D63+F62 -> 589.72 | G63: =$D63+G62 -> 603.75 | H63: 618.35 | I63: 704.04 | J63: 599.64 | K63: 632.56 | L63: 667.19 | M63: 597.63 | N63: 645.02 | O63: 576.64 | P63: 584.6 | Q63: 574.21 | S63: =C63 -> 569 | T63: =S63+T62 -> 574.21 | U63: =T63+U62 -> 581.85 | V63: 602.57 | W63: 637.32 | X63: 667.96 | Y63: 717.31 | Z63: 780.87
B65: Simple Pay Back [year] | F65: =-F62/(F66-$D66) -> 3.520724169 | G65: =-G62/(G66-$D66) -> 3.780217522 | H65: 4.050883812 | I65: 10.80820061 | J65: 4.626584926 | K65: 5.634560255 | L65: 6.402898679 | M65: 8.596485207 | N65: 10.87153169 | O65: 3.436858151 | P65: 15.52655059 | Q65: 3.028023132 | T65: =-(T63-$S$63)/(T66-$S$66) -> 3.028023132 | U65: =-(U63-$S$63)/(U66-$S$66) -> 3.309649778 | V65: 3.610535883 | W65: 5.498374538 | X65: =-(X63-$S$63)/(X66-$S$66) -> 5.644294062 | Y65: =-(Y63-$S$63)/(Y66-$S$66) -> 7.393879805 | Z65: =-(Z63-$S$63)/(Z66-$S$66) -> 9.044797575
B66: Annual Electricity costs [EUR] | C66: =C53*ElCosts -> 48.57959246 | D66: =D53*ElCosts -> 54.03001861 | F66: =F53*ElCosts -> 48.14486573 | G66: 44.83742591 | H66: 41.84749196 | I66: 41.53580196 | J66: 47.40742322 | K66: 42.74963521 | L66: 38.69477673 | M66: 50.69958771 | N66: 47.03744368 | O66: 51.80705809 | P66: 53.02528804 | Q66: 52.30942409 | S66: =S53*ElCosts -> 54.03001861 | T66: 52.30942409 | U66: 50.14743258 | V66: 44.73222984 | W66: 41.60452822 | X66: 36.49726803 | Y66: 33.97153729 | Z66: 30.60550322
B67: LLC [EUR] | C67: =C63+C66*Lifetime -> 1346.273479 | D67: =D63+D66*Lifetime -> 1433.480298 | F67: =F63+F66*Lifetime -> 1360.037852 | G67: 1321.148815 | H67: 1287.909871 | I67: 1368.612831 | J67: 1358.158772 | K67: 1316.554163 | L67: 1286.306428 | M67: 1408.823403 | N67: 1397.619099 | O67: 1405.552929 | P67: 1433.004609 | Q67: 1411.160786 | S67: =S63+S66*Lifetime -> 1433.480298 | T67: 1411.160786 | U67: 1384.208921 | V67: 1318.285677 | W67: 1302.992452 | X67: 1251.916288 | Y67: 1260.854597 | Z67: =Z63+Z66*Lifetime -> 1270.558052
B68: Ranking | F68: 3 | G68: 4 | H68: 6 | I68: 10 | J68: 5 | K68: 7 | L68: 8 | M68: 9 | N68: 11 | O68: 2 | P68: 12 | Q68: 1
F69: 3 | G69: 4 | H69: 5 | I69: 11 | J69: 6 | K69: 7 | L69: 8 | M69: 9 | N69: 12 | O69: 2 | P69: 10 | Q69: 1
B70: Option | F70: =F3 -> C1 | G70: =G3 -> C2 | H70: C3 | I70: VSD | J70: I1 | K70: I2 | L70: I3 | M70: I4 | N70: I5 | O70: PCM | P70: F1 | Q70: F2 | S70: BC | T70: =T3 -> F2 | U70: PCM | V70: C1 | W70: C2 | X70: I1 | Y70: C3 | Z70: I2
B72: Electricity costs [EUR/kWh] | C72: 0.205
B73: Lifetime [year] | C73: 16 | T73: 120 | U73: 0 | V73: =T73/$S$54 -> 0.1968656266
A74: M | B74: Current M value | C74: 0.777 | T74: 140 | U74: 0 | V74: =T74/$S$54 -> 0.2296765643
A75: N | B75: Current N value | C75: 303 | T75: 160 | U75: 0 | V75: 0.2624875021
T76: 180 | U76: 0 | V76: 0.2952984399
T77: 200 | U77: 0 | V77: 0.3281093776
T78: 220 | U78: 0 | V78: 0.3609203154
T79: 240 | U79: 0 | V79: 0.3937312531
T80: 260 | U80: 0 | V80: 0.4265421909
T81: 280 | U81: 0 | V81: 0.4593531287
D105: =(24-4)/20 -> 1
D106: =(24--18)/20 -> 2.1
D107: 1
D108: 1
D109: =1*(1*IF(bBuiltIn="Y",1.04,1)*D107*(NFresh/D6+D105*MFresh)) -> 
D110: =D109*D6 -> 
D111: =D110/D54 -> 
D113: =(D109-D56)/D56 -> 

Sheet LCC-Cold8
A1: Cells in blue font are user input parameters
A2: CECED modified model | C2: Category 8
A3: Modified compared to base line | C3: report VHK | D3: CECED modified | F3: C1 | G3: C2 | H3: C3 | I3: VSD | J3: I1 | K3: I2 | L3: I3 | M3: I4 | N3: I5 | O3: PCM | P3: F1 | Q3: F2 | S3: BC | T3: F2 | U3: C1 | V3: C2 | W3: C3 | X3: PCM | Y3: I1 | Z3: I2
C4: 1 | D4: 1
A5: V | B5: Refrigerated volume [m3] | C5: =(C10-2*C15)*(C11-2*C15)*(C12-C13-2*C15)-C14^2*C10 -> 0.203492 | D5: =(D10-2*D15)*(D11-2*D15)*(D12-D13-2*D15)-D14^2*(D10-2*D15) -> 0.210292 | F5: =(F10-2*F15)*(F11-2*F15)*(F12-F13-2*F15)-F14^2*(F10-2*F15) -> 0.210292 | G5: 0.210292 | H5: 0.210292 | I5: 0.210292 | J5: 0.210292 | K5: 0.210292 | L5: 0.210292 | M5: =(M10-2*M15)*(M11-2*M15)*(M12-M13-2*M15)-M14^2*(M10-2*M15) -> 0.210292 | N5: 0.210292 | O5: =(O10-2*O15)*(O11-2*O15)*(O12-O13-2*O15)-O14^2*(O10-2*O15) -> 0.210292 | P5: =(P10-2*P15)*(P11-2*P15)*(P12-P13-2*P15)-P14^2*(P10-2*P15) -> 0.210292 | Q5: =(Q10-2*Q15)*(Q11-2*Q15)*(Q12-Q13-2*Q15)-Q14^2*(Q10-2*Q15) -> 0.210292 | S5: =(S10-2*S15)*(S11-2*S15)*(S12-S13-2*S15)-S14^2*(S10-2*S15) -> 0.210292 | T5: =(T10-2*T15)*(T11-2*T15)*(T12-T13-2*T15)-T14^2*(T10-2*T15) -> 0.210292 | U5: =(U10-2*U15)*(U11-2*U15)*(U12-U13-2*U15)-U14^2*(U10-2*U15) -> 0.210292 | V5: 0.210292 | W5: 0.210292 | X5: =(X10-2*X15)*(X11-2*X15)*(X12-X13-2*X15)-X14^2*(X10-2*X15) -> 0.210292 | Y5: =(Y10-2*Y15)*(Y11-2*Y15)*(Y12-Y13-2*Y15)-Y14^2*(Y10-2*Y15) -> 0.210292 | Z5: 0.210292
B6: Refrigerated volume [dm3] | C6: =C5*1000 -> 203.492 | D6: =D5*1000 -> 210.292 | F6: =F5*1000 -> 210.292 | G6: 210.292 | H6: 210.292 | I6: 210.292 | J6: 210.292 | K6: 210.292 | L6: 210.292 | M6: =M5*1000 -> 210.292 | N6: 210.292 | O6: =O5*1000 -> 210.292 | P6: =P5*1000 -> 210.292 | Q6: =Q5*1000 -> 210.292 | S6: =S5*1000 -> 210.292 | T6: =T5*1000 -> 210.292 | U6: =U5*1000 -> 210.292 | V6: 210.292 | W6: 210.292 | X6: =X5*1000 -> 210.292 | Y6: =Y5*1000 -> 210.292 | Z6: 210.292
A7: A | B7: Refrigerated envelope surface [m2] | C7: =2*((C10-C15)*(C11-C15)+(C12-C15-C13)*(C11-C15)-(C14+0.5*C15)^2+(C10-C15)*(C12-C15-C13)) -> 3.2327375 | D7: =2*((D10-D15)*(D11-D15)+(D12-D15-D13)*(D11-D15)-(D14)^2+(D10-D15)*(D12-D15-D13)) -> 3.27035 | F7: =2*((F10-F15)*(F11-F15)+(F12-F15-F13)*(F11-F15)-(F14)^2+(F10-F15)*(F12-F15-F13)) -> 3.27035 | G7: 3.27035 | H7: 3.27035 | I7: 3.27035 | J7: 3.36875 | K7: 3.46835 | L7: 3.56915 | M7: =2*((M10-M15)*(M11-M15)+(M12-M15-M13)*(M11-M15)-(M14)^2+(M10-M15)*(M12-M15-M13)) -> 3.27035 | N7: 3.27035 | O7: =2*((O10-O15)*(O11-O15)+(O12-O15-O13)*(O11-O15)-(O14)^2+(O10-O15)*(O12-O15-O13)) -> 3.27035 | P7: =2*((P10-P15)*(P11-P15)+(P12-P15-P13)*(P11-P15)-(P14)^2+(P10-P15)*(P12-P15-P13)) -> 3.27035 | Q7: =2*((Q10-Q15)*(Q11-Q15)+(Q12-Q15-Q13)*(Q11-Q15)-(Q14)^2+(Q10-Q15)*(Q12-Q15-Q13)) -> 3.27035 | S7: =2*((S10-S15)*(S11-S15)+(S12-S15-S13)*(S11-S15)-(S14)^2+(S10-S15)*(S12-S15-S13)) -> 3.27035 | T7: =2*((T10-T15)*(T11-T15)+(T12-T15-T13)*(T11-T15)-(T14)^2+(T10-T15)*(T12-T15-T13)) -> 3.27035 | U7: =2*((U10-U15)*(U11-U15)+(U12-U15-U13)*(U11-U15)-(U14)^2+(U10-U15)*(U12-U15-U13)) -> 3.27035 | V7: 3.27035 | W7: 3.27035 | X7: =2*((X10-X15)*(X11-X15)+(X12-X15-X13)*(X11-X15)-(X14)^2+(X10-X15)*(X12-X15-X13)) -> 3.27035 | Y7: =2*((Y10-Y15)*(Y11-Y15)+(Y12-Y15-Y13)*(Y11-Y15)-(Y14)^2+(Y10-Y15)*(Y12-Y15-Y13)) -> 3.36875 | Z7: 3.46835
A8: Acd | B8: Condenser Area [m2] | C8: =C10*(C12-C13-C14) -> 0.7425 | D8: =D10*(D12-D13-D14) -> 0.7425 | F8: =F10*(F12-F13-F14) -> 0.7425 | G8: 0.7425 | H8: 0.7425 | I8: 0.7425 | J8: 0.7809 | K8: 0.8201 | L8: 0.8601 | M8: =M10*(M12-M13-M14) -> 0.7425 | N8: 0.7425 | O8: =O10*(O12-O13-O14) -> 0.7425 | P8: =P10*(P12-P13-P14) -> 0.7425 | Q8: =Q10*(Q12-Q13-Q14) -> 0.7425 | S8: =S10*(S12-S13-S14) -> 0.7425 | T8: =T10*(T12-T13-T14) -> 0.7425 | U8: =U10*(U12-U13-U14) -> 0.7425 | V8: 0.7425 | W8: 0.7425 | X8: =X10*(X12-X13-X14) -> 0.7425 | Y8: =Y10*(Y12-Y13-Y14) -> 0.7809 | Z8: 0.8201
A9: Ldr | B9: Door perimeter length [m] | C9: =2*(C10+(C12-C13)) -> 4.2 | D9: =2*(D10+(D12-D13)) -> 4.2 | F9: =2*(F10+(F12-F13)) -> 4.2 | G9: 4.2 | H9: 4.2 | I9: 4.2 | J9: 4.28 | K9: 4.36 | L9: 4.44 | M9: =2*(M10+(M12-M13)) -> 4.2 | N9: 4.2 | O9: =2*(O10+(O12-O13)) -> 4.2 | P9: =2*(P10+(P12-P13)) -> 4.2 | Q9: =2*(Q10+(Q12-Q13)) -> 4.2 | S9: =2*(S10+(S12-S13)) -> 4.2 | T9: =2*(T10+(T12-T13)) -> 4.2 | U9: =2*(U10+(U12-U13)) -> 4.2 | V9: 4.2 | W9: 4.2 | X9: =2*(X10+(X12-X13)) -> 4.2 | Y9: =2*(Y10+(Y12-Y13)) -> 4.28 | Z9: 4.36
A10: w | B10: width [m] | C10: 0.55 | D10: 0.55 | F10: 0.55 | G10: 0.55 | H10: 0.55 | I10: 0.55 | J10: 0.57 | K10: 0.59 | L10: 0.61 | M10: 0.55 | N10: 0.55 | O10: 0.55 | P10: 0.55 | Q10: 0.55 | S10: 0.55 | T10: 0.55 | U10: 0.55 | V10: 0.55 | W10: 0.55 | X10: 0.55 | Y10: 0.57 | Z10: 0.59
A11: d | B11: depth [m] | C11: 0.6 | D11: 0.6 | F11: 0.6 | G11: 0.6 | H11: 0.6 | I11: 0.6 | J11: 0.62 | K11: 0.64 | L11: 0.66 | M11: 0.6 | N11: 0.6 | O11: 0.6 | P11: 0.6 | Q11: 0.6 | S11: 0.6 | T11: 0.6 | U11: 0.6 | V11: 0.6 | W11: 0.6 | X11: 0.6 | Y11: 0.62 | Z11: 0.64
A12: h | B12: height [m] | C12: 1.6 | D12: 1.6 | F12: 1.6 | G12: 1.6 | H12: 1.6 | I12: 1.6 | J12: 1.62 | K12: 1.64 | L12: 1.66 | M12: 1.6 | N12: 1.6 | O12: 1.6 | P12: 1.6 | Q12: 1.6 | S12: 1.6 | T12: 1.6 | U12: 1.6 | V12: 1.6 | W12: 1.6 | X12: 1.6 | Y12: 1.62 | Z12: 1.64
A13: a | B13: air passage height below unit [m] | C13: 0.05 | D13: 0.05 | F13: 0.05 | G13: 0.05 | H13: 0.05 | I13: 0.05 | J13: 0.05 | K13: 0.05 | L13: 0.05 | M13: 0.05 | N13: 0.05 | O13: 0.05 | P13: 0.05 | Q13: 0.05 | S13: 0.05 | T13: 0.05 | U13: 0.05 | V13: 0.05 | W13: 0.05 | X13: 0.05 | Y13: 0.05 | Z13: 0.05
A14: b | B14: height and depth compressor area [m] | C14: 0.2 | D14: 0.2 | F14: 0.2 | G14: 0.2 | H14: 0.2 | I14: 0.2 | J14: 0.2 | K14: 0.2 | L14: 0.2 | M14: 0.2 | N14: 0.2 | O14: 0.2 | P14: 0.2 | Q14: 0.2 | S14: 0.2 | T14: 0.2 | U14: 0.2 | V14: 0.2 | W14: 0.2 | X14: 0.2 | Y14: 0.2 | Z14: 0.2
A15: t | B15: average wall thickness [m] | C15: 0.085 | D15: 0.085 | F15: 0.085 | G15: 0.085 | H15: 0.085 | I15: 0.085 | J15: 0.095 | K15: 0.105 | L15: 0.115 | M15: 0.085 | N15: 0.085 | O15: 0.085 | P15: 0.085 | Q15: 0.085 | S15: 0.085 | T15: 0.085 | U15: 0.085 | V15: 0.085 | W15: 0.085 | X15: 0.085 | Y15: 0.095 | Z15: 0.105
A16: t | B16: average wall thickness from data base [m] | C16: =(19.791*C5+3.9023)/100 -> 0.07929610172 | D16: =(19.791*D5+3.9023)/100 -> 0.08064188972 | F16: =(19.791*F5+3.9023)/100 -> 0.08064188972 | G16: 0.08064188972 | H16: 0.08064188972 | I16: 0.08064188972 | J16: 0.08064188972 | K16: 0.08064188972 | L16: 0.08064188972 | M16: =(19.791*M5+3.9023)/100 -> 0.08064188972 | N16: 0.08064188972 | O16: =(19.791*O5+3.9023)/100 -> 0.08064188972 | P16: =(19.791*P5+3.9023)/100 -> 0.08064188972 | Q16: =(19.791*Q5+3.9023)/100 -> 0.08064188972 | S16: =(19.791*S5+3.9023)/100 -> 0.08064188972 | T16: =(19.791*T5+3.9023)/100 -> 0.08064188972 | U16: =(19.791*U5+3.9023)/100 -> 0.08064188972 | V16: 0.08064188972 | W16: 0.08064188972 | X16: =(19.791*X5+3.9023)/100 -> 0.08064188972 | Y16: =(19.791*Y5+3.9023)/100 -> 0.08064188972 | Z16: 0.08064188972
A17: Tc | B17: compartment temperature [C] | C17: -20 | D17: -20 | F17: -20 | G17: -20 | H17: -20 | I17: -20 | J17: -20 | K17: -20 | L17: -20 | M17: -20 | N17: -20 | O17: -20 | P17: -20 | Q17: -20 | S17: -20 | T17: -20 | U17: -20 | V17: -20 | W17: -20 | X17: -20 | Y17: -20 | Z17: -20
A18: Ta | B18: ambient temperature [C] | C18: 25 | D18: 25 | F18: 25 | G18: 25 | H18: 25 | I18: 25 | J18: 25 | K18: 25 | L18: 25 | M18: 25 | N18: 25 | O18: 25 | P18: 25 | Q18: 25 | S18: 25 | T18: 25 | U18: 25 | V18: 25 | W18: 25 | X18: 25 | Y18: 25 | Z18: 25
A19: k | B19: heat conductivity wall [W/m/K] | C19: 0.02 | D19: 0.02 | F19: 0.02 | G19: 0.02 | H19: 0.02 | I19: 0.02 | J19: 0.02 | K19: 0.02 | L19: 0.02 | M19: 0.02 | N19: 0.02 | O19: 0.02 | P19: 0.02 | Q19: 0.02 | S19: 0.02 | T19: 0.02 | U19: 0.02 | V19: 0.02 | W19: 0.02 | X19: 0.02 | Y19: 0.02 | Z19: 0.02
A20: U wall | B20: heat transfer coefficient [W/m2/K] | C20: =C19/C15 -> 0.2352941176 | D20: =D19/D15 -> 0.2352941176 | F20: =F19/F15 -> 0.2352941176 | G20: 0.2352941176 | H20: 0.2352941176 | I20: 0.2352941176 | J20: 0.2105263158 | K20: 0.1904761905 | L20: 0.1739130435 | M20: 0.22 | N20: 0.2 | O20: =O19/O15 -> 0.2352941176 | P20: =P19/P15 -> 0.2352941176 | Q20: =Q19/Q15 -> 0.2352941176 | S20: =S19/S15 -> 0.2352941176 | T20: =T19/T15 -> 0.2352941176 | U20: =U19/U15 -> 0.2352941176 | V20: 0.2352941176 | W20: 0.2352941176 | X20: =X19/X15 -> 0.2352941176 | Y20: =Y19/Y15 -> 0.2105263158 | Z20: 0.1904761905
A21: Ptrans | B21: transmission heat loss [W] | C21: =C7*C20*(C18-C17) -> 34.22898529 | D21: =D7*D20*(D18-D17) -> 34.62723529 | F21: =F7*F20*(F18-F17) -> 34.62723529 | G21: 34.62723529 | H21: 34.62723529 | I21: 34.62723529 | J21: 31.91447368 | K21: 29.72871429 | L21: 27.93247826 | M21: =M7*M20*(M18-M17) -> 32.376465 | N21: 29.43315 | O21: =O7*O20*(O18-O17) -> 34.62723529 | P21: =P7*P20*(P18-P17) -> 34.62723529 | Q21: =Q7*Q20*(Q18-Q17) -> 34.62723529 | S21: =S7*S20*(S18-S17) -> 34.62723529 | T21: =T7*T20*(T18-T17) -> 34.62723529 | U21: =U7*U20*(U18-U17) -> 34.62723529 | V21: 34.62723529 | W21: 34.62723529 | X21: =X7*X20*(X18-X17) -> 34.62723529 | Y21: =Y7*Y20*(Y18-Y17) -> 31.91447368 | Z21: 29.72871429
A22: Udoor | B22: heat transfer coeff. door gasket [W/mK] | C22: 0.03 | D22: 0.03 | F22: 0.03 | G22: 0.03 | H22: 0.03 | I22: 0.03 | J22: 0.03 | K22: 0.03 | L22: 0.03 | M22: 0.03 | N22: 0.03 | O22: 0.03 | P22: 0.03 | Q22: 0.03 | S22: 0.03 | T22: 0.03 | U22: 0.03 | V22: 0.03 | W22: 0.03 | X22: 0.03 | Y22: 0.03 | Z22: 0.03
A23: Pdoor | B23: door heat loss [W] | C23: =C22*C9*(C18-C17) -> 5.67 | D23: =D22*D9*(D18-D17) -> 5.67 | F23: =F22*F9*(F18-F17) -> 5.67 | G23: 5.67 | H23: 5.67 | I23: 5.67 | J23: 5.778 | K23: 5.886 | L23: 5.994 | M23: =M22*M9*(M18-M17) -> 5.67 | N23: 5.67 | O23: =O22*O9*(O18-O17) -> 5.67 | P23: =P22*P9*(P18-P17) -> 5.67 | Q23: =Q22*Q9*(Q18-Q17) -> 5.67 | S23: =S22*S9*(S18-S17) -> 5.67 | T23: =T22*T9*(T18-T17) -> 5.67 | U23: =U22*U9*(U18-U17) -> 5.67 | V23: 5.67 | W23: 5.67 | X23: =X22*X9*(X18-X17) -> 5.67 | Y23: =Y22*Y9*(Y18-Y17) -> 5.778 | Z23: 5.886
A24: Ploss_tot | B24: total heat power loss (Ptrans+Pdoor) [W] | C24: =C21+C23 -> 39.89898529 | D24: =D21+D23 -> 40.29723529 | F24: =F21+F23 -> 40.29723529 | G24: 40.29723529 | H24: 40.29723529 | I24: 40.29723529 | J24: 37.69247368 | K24: 35.61471429 | L24: 33.92647826 | M24: =M21+M23 -> 38.046465 | N24: 35.10315 | O24: =O21+O23 -> 40.29723529 | P24: =P21+P23+2.5*1000/(365*24) -> 40.58262342 | Q24: =Q21+Q23 -> 40.29723529 | S24: =S21+S23 -> 40.29723529 | T24: =T21+T23 -> 40.29723529 | U24: =U21+U23 -> 40.29723529 | V24: 40.29723529 | W24: 40.29723529 | X24: =X21+X23 -> 40.29723529 | Y24: =Y21+Y23 -> 37.69247368 | Z24: 35.61471429
A25: Ploss_tot_spec | B25: specific total heat loss [W/m3] | C25: =C24/C6 -> 0.1960715178 | D25: =D24/D6 -> 0.1916251464 | F25: =F24/F6 -> 0.1916251464 | G25: 0.1916251464 | H25: 0.1916251464 | I25: 0.1916251464 | J25: 0.1792387427 | K25: 0.1693583887 | L25: 0.1613303324 | M25: =M24/M6 -> 0.180922075 | N25: 0.1669257509 | O25: =O24/O6 -> 0.1916251464 | P25: =P24/P6 -> 0.1929822505 | Q25: =Q24/Q6 -> 0.1916251464 | S25: =S24/S6 -> 0.1916251464 | T25: =T24/T6 -> 0.1916251464 | U25: =U24/U6 -> 0.1916251464 | V25: 0.1916251464 | W25: 0.1916251464 | X25: =X24/X6 -> 0.1916251464 | Y25: =Y24/Y6 -> 0.1792387427 | Z25: 0.1693583887
A26: Eloss_tot | B26: annual heat loss [kWhth/a] | C26: =C24*365*24/1000 -> 349.5151112 | D26: =D24*365*24/1000 -> 353.0037812 | F26: =F24*365*24/1000 -> 353.0037812 | G26: 353.0037812 | H26: 353.0037812 | I26: 353.0037812 | J26: 330.1860695 | K26: 311.9848971 | L26: 297.1959496 | M26: =M24*365*24/1000 -> 333.2870334 | N26: 307.503594 | O26: =O24*365*24/1000 -> 353.0037812 | P26: =P24*365*24/1000 -> 355.5037812 | Q26: =Q24*365*24/1000 -> 353.0037812 | S26: =S24*365*24/1000 -> 353.0037812 | T26: =T24*365*24/1000 -> 353.0037812 | U26: =U24*365*24/1000 -> 353.0037812 | V26: 353.0037812 | W26: 353.0037812 | X26: =X24*365*24/1000 -> 353.0037812 | Y26: =Y24*365*24/1000 -> 330.1860695 | Z26: 311.9848971
A27: dTev | B27: evaporator temperature difference [K] | C27: 10 | D27: 10 | F27: 10 | G27: 10 | H27: 10 | I27: 5.3 | J27: 9.5 | K27: 9.1 | L27: 8.8 | M27: 9.4 | N27: 8.7 | O27: 10 | P27: 7.4 | Q27: 10 | S27: 10 | T27: 10 | U27: 10 | V27: 10 | W27: 10 | X27: 10 | Y27: 9.5 | Z27: 8.9
A28: dTcd | B28: condenser temperature difference [K] | C28: 12 | D28: 12 | F28: 11.8 | G28: 11.6 | H28: 11.4 | I28: 8 | J28: 12.3 | K28: 12.5 | L28: 12.7 | M28: 12.3 | N28: 12.7 | O28: 12 | P28: 13.4 | Q28: 9.1 | S28: 12 | T28: 9.1 | U28: 8.9 | V28: 8.7 | W28: 8.5 | X28: 8.5 | Y28: 8.8 | Z28: 9
A29: Tev | B29: evaporator temperature [C] | C29: =C17-C27 -> -30 | D29: =D17-D27 -> -30 | F29: =F17-F27 -> -30 | G29: -30 | H29: -30 | I29: -25.3 | J29: -29.5 | K29: -29.1 | L29: -28.8 | M29: =M17-M27 -> -29.4 | N29: -28.7 | O29: =O17-O27 -> -30 | P29: =P17-P27 -> -27.4 | Q29: =Q17-Q27 -> -30 | S29: =S17-S27 -> -30 | T29: =T17-T27 -> -30 | U29: =U17-U27 -> -30 | V29: -30 | W29: -30 | X29: =X17-X27 -> -30 | Y29: =Y17-Y27 -> -29.5 | Z29: -28.9
A30: Tcd | B30: condenser temperature [C] | C30: =C18+C28 -> 37 | D30: =D18+D28 -> 37 | F30: =F18+F28 -> 36.8 | G30: 36.6 | H30: 36.4 | I30: 33 | J30: 37.3 | K30: 37.5 | L30: 37.7 | M30: =M18+M28 -> 37.3 | N30: 37.7 | O30: =O18+O28 -> 37 | P30: =P18+P28 -> 38.4 | Q30: =Q18+Q28 -> 34.1 | S30: =S18+S28 -> 37 | T30: =T18+T28 -> 34.1 | U30: =U18+U28 -> 33.9 | V30: 33.7 | W30: 33.5 | X30: =X18+X28 -> 33.5 | Y30: =Y18+Y28 -> 33.8 | Z30: 34
A31: Pnom | B31: nominal compressor cooling power [W] | C31: 141 | D31: 141 | F31: 141 | G31: 141 | H31: 141 | I31: 71 | J31: 141 | K31: 141 | L31: 141 | M31: 141 | N31: 141 | O31: 141 | P31: 141 | Q31: 141 | S31: 141 | T31: 141 | U31: 141 | V31: 141 | W31: 141 | X31: 141 | Y31: 141 | Z31: 141
A32: COPnom | B32: nominal at -23.4/54.4 (subcooling 32.2) [-] | C32: 1.62 | D32: 1.62 | F32: 1.725 | G32: 1.85 | H32: 1.98 | I32: 1.85 | J32: 1.62 | K32: 1.62 | L32: 1.62 | M32: 1.62 | N32: 1.62 | O32: 1.62 | P32: 1.62 | Q32: 1.62 | S32: 1.62 | T32: 1.62 | U32: 1.725 | V32: 1.85 | W32: 1.98 | X32: 1.98 | Y32: 1.98 | Z32: 1.98
A33: Pratio | B33: Ratio Pc/Pcnom | C33: =Pc_c1+Pc_c2*C29+Pc_c3*C30+Pc_c4*C29^2+Pc_c5*C29*C30+Pc_c6*C30^2+Pc_c7*C29^3+Pc_c8*C30*C29^2+Pc_c9*C29*C30^2+Pc_c10*C30^3 -> 0.7381307218 | D33: =Pc_c1+Pc_c2*D29+Pc_c3*D30+Pc_c4*D29^2+Pc_c5*D29*D30+Pc_c6*D30^2+Pc_c7*D29^3+Pc_c8*D30*D29^2+Pc_c9*D29*D30^2+Pc_c10*D30^3 -> 0.7381307218 | F33: =Pc_c1+Pc_c2*F29+Pc_c3*F30+Pc_c4*F29^2+Pc_c5*F29*F30+Pc_c6*F30^2+Pc_c7*F29^3+Pc_c8*F30*F29^2+Pc_c9*F29*F30^2+Pc_c10*F30^3 -> 0.7403410005 | G33: 0.7425502525 | H33: 0.7447584827 | I33: 1.019806088 | J33: 0.7576555626 | K33: 0.7739652084 | L33: 0.7857741926 | M33: 0.7622730095 | N33: 0.7904973978 | O33: 0.7381307218 | P33: 0.8452017021 | Q33: 0.7700812805 | S33: =Pc_c1+Pc_c2*S29+Pc_c3*S30+Pc_c4*S29^2+Pc_c5*S29*S30+Pc_c6*S30^2+Pc_c7*S29^3+Pc_c8*S30*S29^2+Pc_c9*S29*S30^2+Pc_c10*S30^3 -> 0.7381307218 | T33: =Pc_c1+Pc_c2*T29+Pc_c3*T30+Pc_c4*T29^2+Pc_c5*T29*T30+Pc_c6*T30^2+Pc_c7*T29^3+Pc_c8*T30*T29^2+Pc_c9*T29*T30^2+Pc_c10*T30^3 -> 0.7700812805 | U33: =Pc_c1+Pc_c2*U29+Pc_c3*U30+Pc_c4*U29^2+Pc_c5*U29*U30+Pc_c6*U30^2+Pc_c7*U29^3+Pc_c8*U30*U29^2+Pc_c9*U29*U30^2+Pc_c10*U30^3 -> 0.7722771539 | V33: 0.774472072 | W33: 0.7766660398 | X33: 0.7766660398 | Y33: 0.7966680847 | Z33: 0.822929402
A34: P | B34: Cooling power | C34: =C31*C33 -> 104.0764318 | D34: =D31*D33 -> 104.0764318 | F34: =F31*F33 -> 104.3880811 | G34: 104.6995856 | H34: 105.0109461 | I34: 72.40623226 | J34: 106.8294343 | K34: 109.1290944 | L34: 110.7941612 | M34: =M31*M33 -> 107.4804943 | N34: 111.4601331 | O34: =O31*O33 -> 104.0764318 | P34: =P31*P33 -> 119.17344 | Q34: =Q31*Q33 -> 108.5814606 | S34: =S31*S33 -> 104.0764318 | T34: =T31*T33 -> 108.5814606 | U34: =U31*U33 -> 108.8910787 | V34: 109.2005621 | W34: 109.5099116 | X34: =X31*X33 -> 109.5099116 | Y34: =Y31*Y33 -> 112.3301999 | Z34: 116.0330457
A35: Load factor | B35: Ratio of heat load to cooling power | C35: =C24/C34 -> 0.3833623484 | D35: =D24/D34 -> 0.3871888631 | F35: =F24/F34 -> 0.3860329156 | G35: 0.3848843819 | H35: 0.3837431887 | I35: 0.5565437399 | J35: 0.3528285432 | K35: 0.32635398 | L35: 0.3062117886 | M35: =M24/M34 -> 0.3539848345 | N35: 0.3149390641 | O35: =O24/O34 -> 0.3871888631 | P35: =P24/P34 -> 0.3405341276 | Q35: =Q24/Q34 -> 0.3711244543 | S35: =S24/S34 -> 0.3871888631 | T35: =T24/T34 -> 0.3711244543 | U35: =U24/U34 -> 0.3700692084 | V35: 0.3690204016 | W35: 0.367977973 | X35: =X24/X34 -> 0.367977973 | Y35: =Y24/Y34 -> 0.3355506685 | Z35: 0.3069359601
A36: Cycling losses | B36: Part load losses (in % COP) | C36: =0.125*(1-C24/C34) -> 0.07707970645 | D36: =0.125*(1-D24/D34) -> 0.07660139211 | F36: =0.125*(1-F24/F34) -> 0.07674588555 | G36: 0.07688945226 | H36: 0.07703210141 | I36: 0.05543203251 | J36: 0.0808964321 | K36: 0.0842057525 | L36: 0.08672352642 | M36: =0.125*(1-M24/M34) -> 0.08075189569 | N36: 0.08563261699 | O36: =0.125*(1-O24/O34)*0.5 -> 0.03830069605 | P36: 0.08243323405 | Q36: 0.07860944321 | S36: =0.125*(1-S24/S34) -> 0.07660139211 | T36: =0.125*(1-T24/T34) -> 0.07860944321 | U36: =0.125*(1-U24/U34) -> 0.07874134895 | V36: 0.07887244981 | W36: 0.07900275338 | X36: =0.125*(1-X24/X34)*0.5 -> 0.03950137669 | Y36: =0.125*(1-Y24/Y34)*0.5 -> 0.04152808322 | Z36: =0.125*(1-Z24/Z34)*0.5 -> 0.04331650249
A37: COP ratio | B37: Ratio COP/ COPnom | C37: =COP_c1+COP_c2*C29+COP_c3*C30+COP_c4*C29^2+COP_c5*C29*C30+COP_c6*C30^2+COP_c7*C29^3+COP_c8*C30*C29^2+COP_c9*C29*C30^2+COP_c10*C30^3 -> 1.024707081 | D37: =COP_c1+COP_c2*D29+COP_c3*D30+COP_c4*D29^2+COP_c5*D29*D30+COP_c6*D30^2+COP_c7*D29^3+COP_c8*D30*D29^2+COP_c9*D29*D30^2+COP_c10*D30^3 -> 1.024707081 | F37: =COP_c1+COP_c2*F29+COP_c3*F30+COP_c4*F29^2+COP_c5*F29*F30+COP_c6*F30^2+COP_c7*F29^3+COP_c8*F30*F29^2+COP_c9*F29*F30^2+COP_c10*F30^3 -> 1.029062762 | G37: 1.033436426 | H37: 1.037828635 | I37: 1.256603473 | J37: 1.031710578 | K37: 1.038168825 | L37: 1.041914655 | M37: 1.034415048 | N37: 1.044616274 | O37: 1.024707081 | P37: 1.064410077 | Q37: 1.089853816 | S37: =COP_c1+COP_c2*S29+COP_c3*S30+COP_c4*S29^2+COP_c5*S29*S30+COP_c6*S30^2+COP_c7*S29^3+COP_c8*S30*S29^2+COP_c9*S29*S30^2+COP_c10*S30^3 -> 1.024707081 | T37: =COP_c1+COP_c2*T29+COP_c3*T30+COP_c4*T29^2+COP_c5*T29*T30+COP_c6*T30^2+COP_c7*T29^3+COP_c8*T30*T29^2+COP_c9*T29*T30^2+COP_c10*T30^3 -> 1.089853816 | U37: =COP_c1+COP_c2*U29+COP_c3*U30+COP_c4*U29^2+COP_c5*U29*U30+COP_c6*U30^2+COP_c7*U29^3+COP_c8*U30*U29^2+COP_c9*U29*U30^2+COP_c10*U30^3 -> 1.094525276 | V37: 1.09922287 | W37: 1.103947161 | X37: 1.103947161 | Y37: 1.111089675 | Z37: 1.123470711
A38: COP | B38: COP at actual Tev and Tcd | C38: =C37*C32 -> 1.660025472 | D38: =D37*D32 -> 1.660025472 | F38: =F37*F32 -> 1.775133265 | G38: 1.911857388 | H38: 2.054900698 | I38: 2.324716425 | J38: 1.671371136 | K38: 1.681833496 | L38: 1.687901742 | M38: =M37*M32 -> 1.675752377 | N38: 1.692278363 | O38: =O37*O32 -> 1.660025472 | P38: =P37*P32 -> 1.724344325 | Q38: =Q37*Q32 -> 1.765563182 | S38: =S37*S32 -> 1.660025472 | T38: =T37*T32 -> 1.765563182 | U38: =U37*U32 -> 1.888056101 | V38: 2.033562309 | W38: 2.185815379 | X38: =X37*X32 -> 2.185815379 | Y38: =Y37*Y32 -> 2.199957556 | Z38: 2.224472008
A39: COP cyc | B39: avg COP at actual Tev and Tcd | C39: =C38*(1-C36) -> 1.532071196 | D39: =D38*(1-D36) -> 1.53286521 | F39: =F38*(1-F36) -> 1.63889909 | G39: 1.764855721 | H39: 1.896607379 | I39: 2.195852669 | J39: 1.536163175 | K39: 1.540213441 | L39: 1.54152095 | M39: =M38*(1-M36) -> 1.540432196 | N39: 1.547364139 | O39: =O38*(1-O36) -> 1.596445341 | P39: =P38*(1-P36) -> 1.582201046 | Q39: =Q38*(1-Q36) -> 1.626773243 | S39: =S38*(1-S36) -> 1.53286521 | T39: =T38*(1-T36) -> 1.626773243 | U39: =U38*(1-U36) -> 1.739388016 | V39: 1.873170268 | W39: 2.013129945 | X39: =X38*(1-X36) -> 2.099472662 | Y39: =Y38*(1-Y36) -> 2.108597536 | Z39: 2.128115661
A40: Eaux | B40: electricity CPU and possible fan [kWh/a] | C40: 4.4 | D40: 4.4 | F40: 4.4 | G40: 4.4 | H40: 4.4 | I40: 8.8 | J40: 4.4 | K40: 4.4 | L40: 4.4 | M40: 4.4 | N40: 4.4 | O40: 4.4 | P40: 6.9 | Q40: 6.7 | S40: 4.4 | T40: 6.7 | U40: 6.7 | V40: 6.7 | W40: 6.7 | X40: 6.7 | Y40: 6.7 | Z40: 6.7
A41: Eaux | B41: electricity CPU and possible fan [W] | C41: =C40*1000/(365*25) -> 0.4821917808 | D41: =D40*1000/(365*25) -> 0.4821917808 | F41: =F40*1000/(365*25) -> 0.4821917808 | G41: 0.4821917808 | H41: 0.4821917808 | I41: 0.9643835616 | J41: 0.4821917808 | K41: 0.4821917808 | L41: 0.4821917808 | M41: =M40*1000/(365*25) -> 0.4821917808 | N41: 0.4821917808 | O41: =O40*1000/(365*25) -> 0.4821917808 | P41: =P40*1000/(365*25) -> 0.7561643836 | Q41: =Q40*1000/(365*25) -> 0.7342465753 | S41: =S40*1000/(365*25) -> 0.4821917808 | T41: =T40*1000/(365*25) -> 0.7342465753 | U41: =U40*1000/(365*25) -> 0.7342465753 | V41: 0.7342465753 | W41: 0.7342465753 | X41: =X40*1000/(365*25) -> 0.7342465753 | Y41: =Y40*1000/(365*25) -> 0.7342465753 | Z41: 0.7342465753
A42: AE | B42: annual electricity consumption [kWh/a] | C42: =C26/C39+C40 -> 232.5324211 | D42: =D26/D39+D40 -> 234.6901644 | F42: =F26/F39+F40 -> 219.790797 | G42: 204.4184927 | H42: 190.5238046 | I42: 169.5593197 | J42: 219.3420549 | K42: 206.9595212 | L42: 197.1939737 | M42: =M26/M39+M40 -> 220.759431 | N42: 203.1273624 | O42: =O26/O39+O40 -> 225.5186141 | P42: =P26/P39+P40 -> 231.5893858 | Q42: =Q26/Q39+Q40 -> 223.6963039 | S42: =S26/S39+S40 -> 234.6901644 | T42: =T26/T39+T40 -> 223.6963039 | U42: =U26/U39+U40 -> 209.6471158 | V42: 195.1525861 | W42: 182.0507179 | X42: =X26/X39+X40 -> 174.8392607 | Y42: =Y26/Y39+Y40 -> 163.2903705 | Z42: 153.3014761
A43: SAE | B43: standard annual electricity consumption [kWh/a] | C43: =C6*M_Cold8*2.15+N_Cold8 -> 550.8167042 | D43: =D6*M_Cold8*2.15+N_Cold8 -> 558.6968842 | F43: =F6*M_Cold8*2.15+N_Cold8 -> 558.6968842 | G43: 558.6968842 | H43: 558.6968842 | I43: 558.6968842 | J43: 558.6968842 | K43: 558.6968842 | L43: 558.6968842 | M43: 558.6968842 | N43: 558.6968842 | O43: 558.6968842 | P43: 558.6968842 | Q43: 558.6968842 | S43: =S6*M_Cold8*2.15+N_Cold8 -> 558.6968842 | T43: 558.6968842 | U43: 558.6968842 | V43: 558.6968842 | W43: 558.6968842 | X43: 558.6968842 | Y43: 558.6968842 | Z43: 558.6968842
A44: EEI | B44: energy efficiency index [-] | C44: =C42/C43 -> 0.4221593487 | D44: =D42/D43 -> 0.4200670723 | F44: =F42/F43 -> 0.3933990025 | G44: 0.3658844331 | H44: 0.3410146181 | I44: 0.3034907201 | J44: 0.3925958085 | K44: 0.3704325673 | L44: 0.3529534158 | M44: =M42/M43 -> 0.3951327405 | N44: 0.3635734657 | O44: =O42/O43 -> 0.4036511039 | P44: =P42/P43 -> 0.4145170527 | Q44: =Q42/Q43 -> 0.4003893887 | S44: =S42/S43 -> 0.4200670723 | T44: =T42/T43 -> 0.4003893887 | U44: =U42/U43 -> 0.3752430374 | V44: 0.3492995783 | W44: 0.3258488155 | X44: =X42/X43 -> 0.3129411773 | Y44: =Y42/Y43 -> 0.2922700576 | Z44: 0.274391142
A45: q-model | B45: Model at Ta=25 C [kWh/dm3] | C45: =C42/C6 -> 1.142710382 | D45: =D42/D6 -> 1.116020412 | F45: =F42/F6 -> 1.045169559 | G45: 0.9720697541 | H45: 0.9059964458 | I45: 0.8063041851 | J45: 1.04303566 | K45: 0.984153088 | L45: 0.9377150519 | M45: =M42/M6 -> 1.049775697 | N45: 0.9659300518 | O45: =O42/O6 -> 1.072407006 | P45: =P42/P6 -> 1.101275302 | Q45: =Q42/Q6 -> 1.063741388 | S45: =S42/S6 -> 1.116020412 | T45: =T42/T6 -> 1.063741388 | U45: =U42/U6 -> 0.996933387 | V45: 0.9280076564 | W45: 0.8657044392 | X45: =X42/X6 -> 0.8314118496 | Y45: =Y42/Y6 -> 0.7764934974 | Z45: 0.728993381
B47: Consumption compared to base case | F47: =(F42-$D42)/$D42 -> -0.06348526583 | G47: =(G42-$D42)/$D42 -> -0.1289856853 | H47: =(H42-$C42)/$C42 -> -0.1806570298 | I47: =(I42-$C42)/$C42 -> -0.2708142852 | J47: -0.05672484771 | K47: =(K42-$C42)/$C42 -> -0.1099756318 | L47: -0.1519721304 | M47: =(M42-$C42)/$C42 -> -0.05062945675 | N47: -0.1264557369 | O47: =(O42-$D42)/$D42 -> -0.03907939805 | P47: =(P42-$D42)/$D42 -> -0.01321222247 | Q47: =(Q42-$D42)/$D42 -> -0.04684414671 | T47: =(T42-$S42)/$S42 -> -0.04684414671 | U47: =(U42-$S42)/$S42 -> -0.1067068519 | V47: -0.1684671296 | W47: -0.2242933641 | X47: -0.255020929 | Y47: -0.304230022 | Z47: -0.3467920718
A49: U cond | B49: Check on condenser heat transfer [W/m2/K] | C49: =(C34+C34/C39)/(2*C8)/C28 -> 9.652541105 | D49: =(D34+D34/D39)/(2*D8)/D28 -> 9.650566456 | F49: =(F34+F34/F39)/(2*F8)/F28 -> 9.592085086 | G49: 9.521903728 | H49: 9.473609144 | I49: 8.870397065 | J49: 9.181216769 | K49: 8.778554935 | L49: 8.361389833 | M49: 9.704275359 | N49: 9.729440931 | O49: 9.498823657 | P49: 9.774096196 | Q49: 12.97428389 | S49: =(S34+S34/S39)/(2*S8)/S28 -> 9.650566456 | T49: 12.97428389 | U49: 12.97576339 | V49: 12.964724 | W49: 12.98536321 | X49: 12.8081273 | Y49: 12.04922863 | Z49: 11.55393579
B51: Price increase (in terms of sales price ?) | F51: 10.57 | G51: 23.15 | H51: 36.24 | I51: 129.21 | J51: 25.39 | K51: 51.76 | L51: 79.13 | M51: 36.18 | N51: 78.62 | O51: 9.14 | P51: 12.08 | Q51: 6.04 | T51: =INDEX($F51:$Q51,MATCH(T3,$F3:$Q3,0)) -> 6.04 | U51: 10.57 | V51: 23.15 | W51: 36.24 | X51: 9.14 | Y51: 25.39 | Z51: 51.76
B52: Price [EUR] | C52: 439 | D52: 439 | F52: =$D52+F51 -> 449.57 | G52: =$D52+G51 -> 462.15 | H52: 475.24 | I52: 568.21 | J52: 464.39 | K52: 490.76 | L52: 518.13 | M52: 475.18 | N52: 517.62 | O52: 448.14 | P52: 451.08 | Q52: 445.04 | S52: =C52 -> 439 | T52: =S52+T51 -> 445.04 | U52: =T52+U51 -> 455.61 | V52: 478.76 | W52: 515 | X52: 524.14 | Y52: 549.53 | Z52: 601.29
B54: Simple Pay Back [year] | F54: =-F51/(F55-$D55) -> 3.460615069 | G54: =-G51/(G55-$D55) -> 3.730445759 | H54: 4.002604888 | I54: 9.677330081 | J54: 8.069636107 | K54: 9.105010749 | L54: 10.29437904 | M54: 12.6689528 | N54: 12.15076517 | O54: 4.861268175 | P54: 19.00388117 | Q54: 2.67998804 | T54: =-T51/(T55-$C55) -> 3.33443005 | U54: =-(U52-$C52)/(U55-$C55) -> 3.540454855 | V54: 5.188659055 | W54: 7.343882712 | X54: 7.198722864 | Y54: 7.786752809 | Z54: 9.991784601
B55: Annual Electricity costs [EUR] | C55: =C42*ElCosts -> 47.66914633 | D55: =D42*ElCosts -> 48.11148371 | F55: =F42*ElCosts -> 45.05711337 | G55: 41.90579101 | H55: 39.05737994 | I55: 34.75966054 | J55: 44.96512126 | K55: 42.42670184 | L55: 40.42476461 | M55: 45.25568335 | N55: 41.6411093 | O55: 46.23131588 | P55: 47.47582408 | Q55: 45.85774231 | S55: =S42*ElCosts -> 48.11148371 | T55: 45.85774231 | U55: 42.97765874 | V55: 40.00628015 | W55: 37.32039717 | X55: 35.84204844 | Y55: 33.47452596 | Z55: 31.42680259
B56: LLC [EUR] | C56: =C52+C55*Lifetime -> 1201.706341 | D56: =D52+D55*Lifetime -> 1208.783739 | F56: =F52+F55*Lifetime -> 1170.483814 | G56: 1132.642656 | H56: 1100.158079 | I56: 1124.364569 | J56: 1183.83194 | K56: 1169.587229 | L56: 1164.926234 | M56: 1199.270934 | N56: 1183.877749 | O56: 1187.841054 | P56: 1210.693185 | Q56: 1178.763877 | S56: =S52+S55*Lifetime -> 1208.783739 | T56: 1178.763877 | U56: 1143.25254 | V56: 1118.860482 | W56: 1112.126355 | X56: 1097.612775 | Y56: 1085.122415 | Z56: =Z52+Z55*Lifetime -> 1104.118842
B57: Ranking | F57: 2 | G57: 3 | H57: 4 | I57: 8 | J57: 6 | K57: 7 | L57: 9 | M57: 10 | N57: 11 | O57: 5 | P57: 12 | Q57: 1
F59: =F3 -> C1 | G59: =G3 -> C2 | H59: C3 | I59: VSD | J59: I1 | K59: I2 | L59: I3 | M59: I4 | N59: I5 | O59: PCM | P59: F1 | Q59: F2 | S59: BC | T59: =T3 -> F2 | U59: C1 | V59: C2 | W59: C3 | X59: PCM | Y59: I1 | Z59: =Z3 -> I2
B61: Electricity costs [EUR/kWh] | C61: 0.205
B62: Lifetime [year] | C62: 16
A63: M | B63: Current M value | C63: 0.539 | S63: 120 | T63: 0 | U63: =S63/$S$43 -> 0.2147855186
A64: N | B64: Current N value | C64: 315 | S64: 140 | T64: 0 | U64: =S64/$S$43 -> 0.250583105
S65: 160 | T65: 0 | U65: 0.2863806914
S66: 180 | T66: 0 | U66: 0.3221782779
S67: 200 | T67: 0 | U67: 0.3579758643
S68: 220 | T68: 0 | U68: 0.3937734507
S69: 240 | T69: 0 | U69: 0.4295710372
S70: 260 | T70: 0 | U70: 0.4653686236
S71: 280 | T71: 0 | U71: 0.50116621
D94: =(24-4)/20 -> 1
D95: =(24--18)/20 -> 2.1
D96: 1
D97: 1
D98: =1*(1*IF(bBuiltIn="Y",1.04,1)*D96*(NFresh/D6+D94*MFresh)) -> 
D99: =D98*D6 -> 
D100: =D99/D43 -> 
D102: =(D98-D45)/D45 -> 

Sheet Compressor
E3: COP | F3: Pc
D4: c1 | E4: 6.652824 | F4: 4.117907
D5: c2 | E5: 0.192766 | F5: 0.152086
D6: c3 | E6: -0.19425 | F6: -0.028372
D7: c4 | E7: 0.002446 | F7: 0.002061
D8: c5 | E8: -0.0046 | F8: -0.000866
D9: c6 | E9: 0.002458 | F9: =0.06/46/46 -> 2.835538752e-05 | I9: =0.06/46/46 -> 2.835538752e-05
D10: c7 | E10: 1.3e-05 | F10: =-0.07/(-19)^3 -> 1.020556932e-05 | I10: =-0.07/(-19)^3 -> 1.020556932e-05
D11: c8 | E11: -3.3e-05 | F11: =-0.15/(46*(-19)^2) -> -9.032879682e-06 | I11: =-0.15/(46*(-19)^2) -> -9.032879682e-06
D12: c9 | E12: =-1.26/(-19*46*46) -> 3.134016516e-05 | F12: =-0.04/(-19*46*46) -> 9.94925878e-07 | I12: =0.04/(-19*46*46) -> -9.94925878e-07 | J12: =-1.26/(-19*46*46) -> 3.134016516e-05
D13: c10 | E13: =-1.14/(46^3) -> -1.171200789e-05 | F13: =-0.01/(46^3) -> -1.027369113e-07 | G13: =Pc_c10*Tc^3 -> -0.01 | J13: =-1.14/(46^3) -> -1.171200789e-05
A15: - | B15: Te | C15: -19
B16: Tc | C16: 46
B18: Pc | C18: =Pc_c1+Pc_c2*Te+Pc_c3*Tc+Pc_c4*Te^2+Pc_c5*Te*Tc+Pc_c6*Tc^2+Pc_c7*Te^3+Pc_c8*Tc*Te^2+Pc_c9*Te*Tc^2+Pc_c10*Tc^3 -> 1.214066
B19: Qc | C19: =COP_c1+COP_c2*Te+COP_c3*Tc+COP_c4*Te^2+COP_c5*Te*Tc+COP_c6*Tc^2+COP_c7*Te^3+COP_c8*Tc*Te^2+COP_c9*Te*Tc^2+COP_c10*Tc^3 -> 1.122139
B21: COP carnot | C21: =(Te+273.15)/((Tc-Te)) -> 3.91 | E21: =0.6*C21 -> 2.346
C22: =(-23.3+273.15)/((54.4--23.3)) -> 3.215572716
